{"text_format":"1","workbook":"xlsx","n_sheets":6,"sheets":["PSDS Instructions - START HERE","PSDS","PCDS Instructions","PCDS","Check Requirements - END HERE","Control"],"not_rendered":{"charts":0,"images":3,"macros":1,"external_links":0,"defined_names":3,"comments":2,"pivot_tables":0},"unopened":[],"bounds":{"document_bytes":16777216,"sheet_cells":100000,"rows_first":2000,"rows_last":500,"rows_between":2000,"halvings":0,"cell_chars":16384,"cell_head_chars":4096},"cells_cut":0,"cells_raw":0,"read":"whole","date_system":"1900"}

{"sheet":"PSDS Instructions - START HERE","index":0,"n_rows":65,"n_cols":4,"rows_kept":65,"cut":false,"hidden":false,"merged":[[32,2,32,3],[64,1,64,3],[52,2,52,3],[61,2,61,3],[62,1,62,3],[63,1,63,3],[59,1,59,3],[53,2,53,3],[55,1,55,3],[60,2,60,3],[56,2,56,3],[57,1,57,3],[58,2,58,3],[47,1,47,3],[48,2,48,3],[49,1,49,3],[51,2,51,3],[50,2,50,3],[1,1,4,3],[5,1,5,3],[6,2,6,3],[8,2,8,3],[13,2,13,3],[9,2,9,3],[12,2,12,3],[10,1,10,3],[11,2,11,3],[28,1,28,3],[29,2,29,3],[30,2,30,3],[24,2,24,3],[25,2,25,3],[26,2,26,3],[14,2,14,3],[16,2,16,3],[27,2,27,3],[23,2,23,3],[22,2,22,3],[21,1,21,3],[18,2,18,3],[15,2,15,3],[19,2,19,3],[20,2,20,3],[17,2,17,3],[16,1,17,1],[31,2,31,3],[54,2,54,3],[41,2,41,3],[33,2,33,3],[34,2,34,3],[35,2,35,3],[38,2,38,3],[39,2,39,3],[36,2,36,3],[37,1,37,3],[40,2,40,3],[42,1,42,3],[43,2,43,3],[44,1,44,3],[45,2,45,3],[46,2,46,3]]}
[]
[null,"PACKAGING SPECIFICATION DATA SHEET"]
[]
[]
[]
[null,"SUPPLIER INSTRUCTIONS"]
[null,"PACKAGING DATA SHEET (PDS) File Name","Name the PSDS File using the following convention: \n- Cummins Part No. (as defined by CMI Part Print), underscore\n- Supplier ID No. (SIDNNNNNN), underscore\n- Pack Type: (AAA) where pack type is defined as Expendable: (EXP), Returnable (RET), underscore \n- Submission Date (YYMMDD), underscore \n- Supplier Company Name"]
[null,"Example","For Part A123B456, Supplier # 678987, Expendable, April 22 2016, ACME Widget Company","A123B456_SID678987_EXP_160422_ACME Widget Company"]
[null,"SPECIAL INSTRUCTIONS\nDocument Submission Format","The Excel version of the PSDS is a working document submitted to the Cummins Sourcing Manager for approval.  Where traceability is required to track multiple suppler revisions, the supplier shall submit a like titled PDF document with the PSDS & PCDS included in the same file.  The Supplier Instructions for the PSDS & PCDS are NOT to be included in the PDF file."]
[null,"SPECIAL INSTRUCTIONS\nPicture Insert","Select 'Insert', 'Picture' on the main tool bar and select picture from source folder.  Resize the picture to fit the picture cell while holding the 'Shift Key' to maintain the aspect ratio.  Apply the appropriate photo resolution to optimize the size of the finished document. Low resolution is required for close-in photos - higher resolution for farther away photos."]
[null,"COMPONENT PART - PROPOSAL INFORMATION"]
[null,"PART NUMBER","Indicate the Part Number from the Cummins Engineering Drawing."]
[null,"REV LEVEL","Indicate the Revision Level from the Cummins Engineering Drawing."]
[null,"PART NAME","Indicate the Part Name from the Cummins Engineering Drawing using proper naming convention (Noun Name, Qualifier)."]
[null,"ANNUAL VOLUME","Indicated the estimated annual supply volume."]
[null,"PFEP","Indicate if Plan-For-Every-Part criteria was provided by Cummins and is the basis for the supplier proposal."]
[null,"PROPOSAL LEVEL","Indicate the Proposal Level of the document being submitted.  Initial submission is 'Preliminary'.  Each subsequent submission is 'Change' including a proposed change to an existing or approved proposal."]
[null,null,"Cummins Inc will indicate 'Final' state upon system approval of the proposal."]
[null,"SUBMISSION DATE","Indicate the Submission Date (DD-MMM-YYYY) of the document as it relates to the Proposal Level."]
[null,"TYPE","Indicate the type of packaging specification, EXPendable or RETurnable."]
[null,"SOURCING MGR EMAIL","Indicate the email address of the Cummins Sourcing Manager to whom the document is submitted."]
[null,"SUPPLIER INFORMATION"]
[null,"COMPANY NAME","Indicate the name of the component supplier."]
[null,"SUPPLIER ADDRESS","Indicate the Supplier Address for the Point of Origin of the component. "]
[null,"SUPPLIER ID NO.","Indicate the Cummins assigned Supplier ID (SIM) Number."]
[null,"PACKAGING ENGINEER","Indicate the name of the responsible supplier Packaging Engineer."]
[null,"PHONE NUMBER","Indicate the Phone Number of the supplier Packaging Engineer."]
[null,"EMAIL ADDRESS","Indicate the Email Address of the supplier Packaging Engineer."]
[null,"PACKAGING DATA"]
[null,"PART","Insert a digital photo or graphic of an 'unpackaged' single Part."]
[null,"PART DIMENSIONS","Indicate in millimeters the dimensions of a single part."]
[null,"INTERNAL DUNNAGE","Insert a digital photo or graphic of the Internal Dunnage displaying the part as packed."]
[null,"DUNNAGE DIMENSIONS","Indicate in millimeters the outside dimensions of a single piece of dunnage."]
[null,"PRIMARY CONTAINER","The Primary Container is the smallest unit of containerization of the packaged part. Insert a digital photo or graphic of the Primary Container displaying the part (and dunnage) as packed. Include Primary Container Label placement."]
[null,"CONTAINER DIMENSIONS","Indicate in millimeters the outside dimensions of a single container."]
[null,"UNIT LOAD","A unit load is multiple primary container items assembled into a single packaged structure for handling. Insert a digital photo or graphic of the entire Unit Load ready for shipment.  Include Unit Load Securement method and Unit Load Label placement."]
[null,"UNIT LOAD DIMENSIONS","Indicate in millimeters the outside dimensions of Unit Load as shipped."]
[null,"QUANTITY & WEIGHT CALCULATIONS"]
[null,"PIECES/CONTAINER","Indicate the quantity of parts in a single container."]
[null,"CONTAINERS/LAYER","Indicate the quantity of containers required to cube out one full layer on a secondary container, pallet or Unit Load (as applicable)."]
[null,"LAYERS/PALLET","Indicate the number of layers required to cube out the secondary container, pallet or Unit Load (as applicable)."]
[null,"UNIT LOAD QUANTITY","The Unit Load Quantity will automatically calculate."]
[]
[null,"PART WEIGHT","Indicate in kilograms the weight of a single part."]
[]
[null,"PRIMARY CONTR GROSS","The total weight of the primary container including contents and packaging. Will automatically calculate."]
[null,"UNIT LOAD GROSS","The total weight of the unit load including contents and packaging. Will automatically calculate."]
[null,"METHOD OF LOAD SECUREMENT"]
[null,"BANDING, STRETCHWRAP, ANGLEBOARD, OTHER","Check boxes to indicate the method of Unit Load Securement.  Check multiple boxes if applicable. If an alternate method is used, check 'Other' and describe."]
[null,"PERFORMANCE VALIDATION"]
[null,"PERFORMANCE VALIDATION","Make a selection to indicate which type of validation testing was successfully performed."]
[null,"UNIT LOAD STACK ABILITY","Make a selection to indicate compliance to the Unit Load Stackability Requirements outlined in the Cummins Global Packaging Standard."]
[null,"PALLET DECKBOARD SPACING","Make a selection to indicate compliance to the Pallet Construction Requirements outlined in the Cummins Global Packaging Standard.  Deck Board Spacing NOT to exceed 3.0 in (76.2 mm)."]
[null,"PALLET DECKBOARD THICKNESS","Make a selection to indicate compliance to the Pallet Construction Requirements outlined in the Cummins Global Packaging Standard.  Deck Board Thickness MINIMUM of 0.5 in (12.7mm)."]
[null,"ISPM-15 COMPLIANCE","All export shipments outside of source country MUST be heat-treated compliant to ISPM-15."]
[null,"PARTS IDENTIFICATION BAR CODE SHIPPING  LABEL"]
[null,"INSERT IMAGE","Insert image displaying the format and data content compliant with Cummins Global Packaging Standard."]
[null,"CUMMINS RECEIVING LOCATION - CONTACT INFORMATION"]
[null,"CUMMINS LOCATION","Indicate the Cummins receiving location Entity Code and Name as provided by the Cummins Sourcing Manager. This Packaging Data Sheet form will be reviewed only for the selected receiving location. If selling to multiple Cummins locations, it is required that one form per each location is submitted."]
[null,"PRESERVATION"]
[null,"PART PRESERVATION & SHELF LIFE","Indicate the standard reference utilized in the design of the part packaging system proposal and use of any active packaging components (desiccant, VCI, etc)."]
[null,"NUMBER OF MONTHS PRESERVATION","Indicate the number of months of part preservation and stable shelf life that can be achieved through the use of protective active packaging components (desiccant, VCI, etc) in the part packaging system proposal."]
[null,"PSDS approval indicates acceptance of the supplier proposal however does not relieve the supplier of responsibility for packaging performance to the point of use."]
[null,"This document is the property of Cummins Inc. and cannot be revised without permission of the Cummins Global Packaging Council."]
[null,"PDS - REV 002 - DEC 2019"]

{"sheet":"PSDS","index":1,"n_rows":141,"n_cols":47,"rows_kept":141,"cut":false,"hidden":false,"merged":[[35,27,35,30],[36,24,36,26],[31,14,31,15],[30,20,30,21],[30,22,31,23],[30,24,30,28],[30,29,30,30],[31,1,31,3],[31,4,31,5],[31,6,31,7],[31,8,31,9],[31,10,31,11],[31,16,31,17],[30,1,30,3],[30,4,30,5],[30,6,30,9],[30,10,30,11],[30,16,30,17],[30,18,30,19],[31,18,31,19],[31,20,31,21],[31,24,31,28],[31,29,31,30],[36,27,36,30],[37,27,37,30],[37,24,37,26],[38,24,38,27],[38,28,38,30],[46,14,46,15],[47,1,47,30],[48,1,48,21],[48,22,49,30],[49,1,49,6],[49,7,49,21],[45,24,45,30],[46,24,46,30],[33,3,42,12],[43,3,44,12],[33,14,42,23],[43,14,44,23],[35,24,35,26],[42,24,42,30],[43,24,43,30],[44,24,44,30],[45,1,45,4],[45,5,45,6],[45,7,45,8],[45,9,45,10],[61,1,61,30],[62,1,62,30],[63,1,63,30],[64,1,64,30],[60,22,60,30],[50,22,59,30],[60,1,60,21],[57,13,57,19],[57,20,57,21],[59,1,59,6],[59,7,59,12],[59,13,59,18],[59,19,59,21],[58,1,58,6],[58,7,58,11],[58,12,58,21],[56,1,56,21],[57,1,57,12],[50,1,55,21],[45,16,45,17],[45,18,45,19],[45,20,45,21],[46,1,46,4],[46,5,46,6],[46,7,46,8],[46,9,46,10],[46,16,46,17],[46,18,46,19],[46,20,46,21],[18,14,27,23],[28,14,29,23],[29,24,29,30],[32,32,32,38],[33,1,44,1],[33,2,44,2],[33,13,44,13],[33,24,33,30],[33,32,34,38],[34,24,34,30],[36,32,37,33],[36,34,37,38],[38,32,39,33],[38,34,39,38],[40,32,41,33],[32,1,32,23],[32,24,32,28],[32,29,32,30],[40,34,41,38],[39,24,39,30],[42,32,43,33],[42,34,43,38],[40,24,40,30],[41,24,41,30],[16,32,16,38],[17,1,17,30],[17,32,17,38],[18,1,29,1],[18,2,29,2],[18,13,29,13],[18,24,18,30],[18,32,18,38],[27,32,27,38],[22,32,22,38],[23,24,23,28],[23,29,23,30],[24,24,24,28],[24,29,24,30],[25,24,28,30],[19,24,19,30],[20,24,20,28],[20,29,20,30],[21,24,21,28],[21,29,21,30],[22,24,22,28],[22,29,22,30],[18,3,27,12],[28,3,29,12],[14,16,14,21],[14,22,14,30],[15,6,15,15],[15,16,15,21],[15,22,15,30],[16,1,16,30],[11,1,11,30],[12,1,12,5],[12,6,12,15],[12,16,12,21],[12,22,12,30],[13,1,15,5],[13,6,13,15],[13,16,13,21],[13,22,13,30],[14,6,14,15],[9,1,9,5],[9,6,9,10],[9,16,9,21],[9,22,9,30],[10,1,10,30],[8,1,8,5],[8,6,8,15],[8,16,8,21],[8,22,8,25],[8,26,8,28],[8,29,8,30],[9,13,9,15],[9,11,9,12],[1,1,4,27],[5,1,5,30],[6,1,6,30],[7,1,7,5],[7,6,7,10],[7,11,7,13],[7,14,7,15],[7,16,7,21],[7,22,7,30]]}
[null,{"$f":"IF(OR(ISBLANK(G8),ISBLANK(G9),ISBLANK(G10),ISBLANK(W9),ISBLANK(W10),ISBLANK(G13),ISBLANK(G14),ISBLANK(W13),ISBLANK(W14),ISBLANK(W15),ISBLANK(W16),ISBLANK(AD21),ISBLANK(AD22),ISBLANK(AD23),ISBLANK(AD25),ISBLANK(Q47),ISBLANK(S47),ISBLANK(U47),ISBLANK(F47),ISBLANK(H47),ISBLANK(B58),ISBLANK(U58),ISBLANK(J47)),\"! Required entries are blank !\",\"\")","v":"! Required entries are blank !"},null,null,null,null,null,null,null,null,null,null,null,null,null,{"$f":"IF(OR(ISBLANK($G$8),ISBLANK($W$9),ISBLANK($G$13),ISBLANK($W$13)),\"\",\"Save this file with the name:\")","v":""},null,null,null,null,null,null,{"$f":"IF(OR(ISBLANK($G$8),ISBLANK($W$9),ISBLANK($G$13),ISBLANK($W$13)),\"\",G8&\"_\"&\"SID\"&W13&\"_\"&AD9&\"_\"&(TEXT(W9,\"yymmdd\"))&\"_\"&G13&\".xlsm\")","v":""}]
[null,"PACKAGING SPECIFICATION DATA SHEET"]
[]
[]
[]
[]
[]
[null,"PART NUMBER",null,null,null,null,null,null,null,null,null,"REV LEVEL",null,null,null,null,"PROPOSAL LEVEL",null,null,null,null,null,null,null,null,null,null,null,null,null,null,null,"Preliminary","Change"]
[null,"PART NAME",null,null,null,null,null,null,null,null,null,null,null,null,null,null,"SUBMISSION DATE",null,null,null,null,null,null,null,null,null,"TYPE",null,null,null,null,null,"EXP","RET"]
[null,"ANNUAL VOLUME",null,null,null,null,null,null,null,null,null,"PFEP",null,null,null,null,"SOURCING MGR EMAIL",null,null,null,null,null,null,null,null,null,null,null,null,null,null,null,"Using PFEP","No PFEP"]
[]
[null,"SUPPLIER INFORMATION"]
[null,"COMPANY NAME",null,null,null,null,null,null,null,null,null,null,null,null,null,null,"SUPPLIER ID NO.",null,null,null,null,null,null,null,null,null,null,null,null,null,null," ",6]
[null,"SUPPLIER ADDRESS   (POINT OF MANUFACTURE)",null,null,null,null,null,null,null,null,null,null,null,null,null,null,"PACKAGING ENGINEER"]
[null,null,null,null,null,null,null,null,null,null,null,null,null,null,null,null,"PHONE NUMBER"]
[null,null,null,null,null,null,null,null,null,null,null,null,null,null,null,null,"EMAIL ADDRESS"]
[]
[null,"PACKAGING DATA",null,null,null,null,null,null,null,null,null,null,null,null,null,null,null,null,null,null,null,null,null,null,null,null,null,null,null,null,null,null,"CONVERSION TABLE"]
[null,"PART ","(Display Single Part)","INSERT PHOTO",null,null,null,null,null,null,null,null,null,"INTERNAL DUNNAGE","INSERT PHOTO",null,null,null,null,null,null,null,null,null,"QTY & WEIGHT (kg)",null,null,null,null,null,null,null,"US CUSTOMARY UNITS TO METRIC"]
[null,null,null,null,null,null,null,null,null,null,null,null,null,null,null,null,null,null,null,null,null,null,null,null,"CALCULATIONS",null,null,null,null,null,null,null,null,"pounds","x",0.4536,"=",{"$f":"AJ20*AG20","v":0},"kilograms"]
[null,null,null,null,null,null,null,null,null,null,null,null,null,null,null,null,null,null,null,null,null,null,null,null,"PIECES/CONTAINER",null,null,null,null,null,null,null,null,"inches","x",25.4,"=",{"$f":"AJ21*AG21","v":0},"millimeters"]
[null,null,null,null,null,null,null,null,null,null,null,null,null,null,null,null,null,null,null,null,null,null,null,null,"CONTAINERS/LAYER",null,null,null,null,null,null,null,null,"feet","x",0.30480000000000002,"=",{"$f":"AJ22*AG22","v":0},"meters"]
[null,null,null,null,null,null,null,null,null,null,null,null,null,null,null,null,null,null,null,null,null,null,null,null,"LAYERS/PALLET",null,null,null,null,null,null,null,"METRIC TO US CUSTOMARY UNITS"]
[null,null,null,null,null,null,null,null,null,null,null,null,null,null,null,null,null,null,null,null,null,null,null,null,"UNIT LOAD QUANTITY",null,null,null,null,{"$f":"AD21*AD22*AD23","v":0},null,null,null,"kilograms","x",2.2046000000000001,"=",{"$f":"AJ24*AG24","v":0},"pounds"]
[null,null,null,null,null,null,null,null,null,null,null,null,null,null,null,null,null,null,null,null,null,null,null,null,"PART WEIGHT (kg)",null,null,null,null,null,null,null,null,"millimeters","x",3.9399999999999998E-2,"=",{"$f":"AJ25*AG25","v":0},"inches"]
[null,null,null,null,null,null,null,null,null,null,null,null,null,null,null,null,null,null,null,null,null,null,null,null,null,null,null,null,null,null,null,null,null,"meters","x",3.2808000000000002,"=",{"$f":"AJ26*AG26","v":0},"feet"]
[]
[null,null,null,null,null,null,null,null,null,null,null,null,null,null,null,null,null,null,null,null,null,null,null,null,null,null,null,null,null,null,null,null,"Note: Conversion Table is beyond the intended print area"]
[null,null,null,"OPTIONAL COMMENTS",null,null,null,null,null,null,null,null,null,null,"OPTIONAL COMMENTS"]
[null,null,null,null,null,null,null,null,null,null,null,null,null,null,null,null,null,null,null,null,null,null,null,null,"GROSS WEIGHT (kg)"]
[null,"DIMENSIONS",null,null,"Length",null,"Width / Diameter",null,null,null,"Height",null,null,null,null,null,"Length",null,"Width",null,"Height",null,null,null,"PRIMARY CONTAINER",null,null,null,null,{"$f":"($AD$21*$AD$25)+(PCDS!$C$99+PCDS!$G$99)","v":0}]
[null,"(mm)",null,null,null,null,null,null,null,null,null,null,null,null,"(mm)",null,null,null,null,null,null,null,null,null,"UNIT LOAD (kg)",null,null,null,null,{"$f":"(AD25*AD24)+PCDS!AB99","v":0}]
[]
[null,"UNIT LOAD","(As Shipped)","INSERT PHOTO",null,null,null,null,null,null,null,null,null,"PRIMARY CONTAINER","INSERT PHOTO",null,null,null,null,null,null,null,null,null,"METHOD OF UNIT",null,null,null,null,null,null,null,"COLOR LEGEND"]
[null,null,null,null,null,null,null,null,null,null,null,null,null,null,null,null,null,null,null,null,null,null,null,null,"LOAD SECUREMENT"]
[null,null,null,null,null,null,null,null,null,null,null,null,null,null,null,null,null,null,null,null,null,null,null,null,"BANDING",null,null,null,null,null,null,null,null,null,null,null,null,null,null,null,"None","Plastic Banding","Other Banding"]
[null,null,null,null,null,null,null,null,null,null,null,null,null,null,null,null,null,null,null,null,null,null,null,null,"WRAPPING",null,null,null,null,null,null,null,"WHITE",null,"GENERAL INFORMATION - MANUAL INPUT",null,null,null,null,null,"None","Clear Stretchwrap","Other Wrapping"]
[null,null,null,null,null,null,null,null,null,null,null,null,null,null,null,null,null,null,null,null,null,null,null,null,"EDGES",null,null,null,null,null,null,null,null,null,null,null,null,null,null,null,"None","Angleboard"]
[null,null,null,null,null,null,null,null,null,null,null,null,null,null,null,null,null,null,null,null,null,null,null,null,"OTHER - Describe",null,null,null,null,null,null,null,"YELLOW",null,"COST INFORMATION - MANUAL INPUT"]
[null,null,null,null,null,null,null,null,null,null,null,null,null,null,null,null,null,null,null,null,null,null,null,null,"PERFORMANCE VALIDATION"]
[null,null,null,null,null,null,null,null,null,null,null,null,null,null,null,null,null,null,null,null,null,null,null,null,null,null,null,null,null,null,null,null,"GREEN",null,"COST INFORMATION - CALCULATED",null,null,null,null,null,"None","Trial shipment completed","Parcel simulation in lab","LTL simulation in lab","Other",null,"Complies with Production Standard section Preservation & Shelf Life"]
[null,null,null,null,null,null,null,null,null,null,null,null,null,null,null,null,null,null,null,null,null,null,null,null,"UNIT LOAD STACK ABILITY",null,null,null,null,null,null,null,null,null,null,null,null,null,null,null,null,null,null,null,null,null,"Doesn't Complies with Production Standard section Preservation & Shelf Life"]
[null,null,null,null,null,null,null,null,null,null,null,null,null,null,null,null,null,null,null,null,null,null,null,null,null,null,null,null,null,null,null,null,"BLUE",null,"INFORMATION - CALCULATED OR AUTO-POPULATED",null,null,null,null,null,"Complies with 5.10.1.a/b","Does not comply",null,null,null,null,"Complies with New & Recon Standard section Preservation "]
[null,null,null,"OPTIONAL COMMENTS",null,null,null,null,null,null,null,null,null,null,"OPTIONAL COMMENTS",null,null,null,null,null,null,null,null,null,"PALLET DECKBOARD SPACING",null,null,null,null,null,null,null,null,null,null,null,null,null,null,null,null,null,null,null,null,null,"Doesn't Complies with New & Recon Standard section Preservation "]
[null,null,null,null,null,null,null,null,null,null,null,null,null,null,null,null,null,null,null,null,null,null,null,null,null,null,null,null,null,null,null,null,null,null,null,null,null,null,null,null,"Complies with 5.7.2.2.c","Does not comply",null,null,null,null,"Complies with Site Specific Requiremnt of Preservation & Shelf life "]
[null,"DIMENSIONS",null,null,null,"Length",null,"Width",null,"Height",null,null,null,null,null,null,"Length",null,"Width",null,"Height",null,null,null,"ISPM-15 COMPLIANCE"]
[null,"(mm)",null,null,null,null,null,null,null,null,null,null,null,null,"(mm)",null,null,null,null,null,null,null,null,null,null,null,null,null,null,null,null,null,null,null,null,null,null,null,null,null,"Complies","Does not comply","None"]
[]
[null,"CUMMINS RECEIVING LOCATION",null,null,null,null,null,null,null,null,null,null,null,null,null,null,null,null,null,null,null,null,"PARTS IDENTIFICATION BAR CODE SHIPPING  LABEL",null,null,null,null,null,null,null,null,null,null,"`",null,null,null,null,null,null,null,null,null,"AUST_Cummins Scoresby - PDC - Australia"]
[null,"RECEIVING LOCATION",null,null,null,null,null,null,null,null,null,null,null,null,null,null,null,null,null,null,null,null,null,null,null,null,null,null,null,null,null,null,null,null,null,null,null,null,null,null,0,null,null,"CBL_Cummins Brasil Ltd - Guarulhos, Sao Paulo, Brazil"]
[null,null,null,null,null,null,null,null,null,null,null,null,null,null,null,null,null,null,null,null,null,null,"INSERT IMAGE",null,null,null,null,null,null,null,null,null,null,null,null,null,null,null,null,null,1,null,null,"CCZ_Cummins Czech Republic - Prague-Vchod, Czech Republic"]
[null,null,null,null,null,null,null,null,null,null,null,null,null,null,null,null,null,null,null,null,null,null,null,null,null,null,null,null,null,null,null,null,null,null,null,null,null,null,null,null,2,null,null,"CDE_Cummins Diesel Ireland - Tallaght, Dublin, Ireland"]
[null,null,null,null,null,null,null,null,null,null,null,null,null,null,null,null,null,null,null,null,null,null,null,null,null,null,null,null,null,null,null,null,null,null,null,null,null,null,null,null,3,null,null,"CDJ_Cummins Japan, Ltd - Tokyo, Japan"]
[null,null,null,null,null,null,null,null,null,null,null,null,null,null,null,null,null,null,null,null,null,null,null,null,null,null,null,null,null,null,null,null,null,null,null,null,null,null,null,null,4,null,null,"CDP_Poland - Krakow, Poland"]
[null,null,null,null,null,null,null,null,null,null,null,null,null,null,null,null,null,null,null,null,null,null,null,null,null,null,null,null,null,null,null,null,null,null,null,null,null,null,null,null,5,null,null,"CDU_Cummins UK - Wellingborough, Northants, UK"]
[null,null,null,null,null,null,null,null,null,null,null,null,null,null,null,null,null,null,null,null,null,null,null,null,null,null,null,null,null,null,null,null,null,null,null,null,null,null,null,null,6,null,null,"CES - CBL_Cummins Emission Solutions - Guarulhos, Sao Paulo, Brazil"]
[null,"PRESERVATION",null,null,null,null,null,null,null,null,null,null,null,null,null,null,null,null,null,null,null,null,null,null,null,null,null,null,null,null,null,null,null,null,null,null,null,null,null,null,7,null,null,"CES - Cummins Emission Solutions Doser System, Juarez, Mexico"]
[null,null,null,null,null,null,null,null,null,null,null,null,null,"Number of Months Preservation ",null,null,null,null,null,null,null,null,null,null,null,null,null,null,null,null,null,null,null,null,null,null,null,null,null,null,8,null,null,"CES - DAR_Cummins Emission Solutions - Darlington, UK"]
[null,null,null,null,null,null,null,null,null,null,null,null,null,null,null,null,null,null,null,null,null,null,null,null,null,null,null,null,null,null,null,null,null,null,null,null,null,null,null,null,9,null,null,"CES - ESN Cummins Emission Solutions - Beringe, Netherlands"]
[null,null,null,null,null,null,null,null,null,null,null,null,null,null,null,null,null,null,null,null,null,null,null,null,null,null,null,null,null,null,null,null,null,null,null,null,null,null,null,null,10,null,null,"CES - GER_Cummins Emission Solutions - Marktheidenfeld, Germany"]
[null,null,null,null,null,null,null,null,null,null,null,null,null,null,null,null,null,null,null,null,null,null,"OPTIONAL COMMENTS",null,null,null,null,null,null,null,null,null,null,null,null,null,null,null,null,null,11,null,null,"CES - ESJ_Cummins Emission Solutions - El Paso, TX, Juarez, Mexico"]
[null,null,null,null,null,null,null,null,null,null,null,null,null,null,null,null,null,null,null,null,null,null,null,null,null,null,null,null,null,null,null,null,null,null,null,null,null,null,null,null,12,null,null,"CES - NET_Cummins Emission Solutions - Born, Netherlands"]
[null,"PDS approval indicates acceptance of the supplier proposal however does not relieve the supplier of responsibility for packaging performance to the point of use.",null,null,null,null,null,null,null,null,null,null,null,null,null,null,null,null,null,null,null,null,null,null,null,null,null,null,null,null,null,null,null,null,null,null,null,null,null,null,13,null,null,"CES - Phaltan, Cummins Emission Solution, Megasite,Pune,India"]
[null,"This document is the property of Cummins Inc. and cannot be revised without permission of the Cummins Global Packaging Council.",null,null,null,null,null,null,null,null,null,null,null,null,null,null,null,null,null,null,null,null,null,null,null,null,null,null,null,null,null,null,null,null,null,null,null,null,null,null,14,null,null,"CES - SIW_Cummins Emission Solutions- Southern Indiana Warehouse - Columbus, Indiana"]
[null,"PDS - REV 002 - DEC 2019",null,null,null,null,null,null,null,null,null,null,null,null,null,null,null,null,null,null,null,null,null,null,null,null,null,null,null,null,null,null,null,null,null,null,null,null,null,null,15,null,null,"CES - WIS_Cummins Emission Solutions - Janesville, Mineral Point, WI, USA"]
[null,{"$f":"B1","v":"! Required entries are blank !"},null,null,null,null,null,null,null,null,null,null,null,null,null,null,null,null,null,null,null,null,null,null,null,null,null,null,null,null,null,null,null,null,null,null,null,null,null,null,16,null,null,"CES - Wuxi - Cummins Emission Solution, Doser,Wuxi, China"]
[null,null,null,null,null,null,null,null,null,null,null,null,null,null,null,null,null,null,null,null,null,null,null,null,null,null,null,null,null,null,null,null,null,null,null,null,null,null,null,null,17,null,null,"CES, Cummins Emission Solutions, Beijing,China"]
[null,null,null,null,null,null,null,null,null,null,null,null,null,null,null,null,null,null,null,null,null,null,null,null,null,null,null,null,null,null,null,null,null,null,null,null,null,null,null,null,18,null,null,"CEVA - UK_CEVA Logistics JV Kitting - UK - Warrington, UK"]
[null,null,null,null,null,null,null,null,null,null,null,null,null,null,null,null,null,null,null,null,null,null,null,null,null,null,null,null,null,null,null,null,null,null,null,null,null,null,null,null,">19",null,null,"CEVA - US_CEVA Logistics JV Kitting - US - Plainfield, IN, USA"]
[null,null,null,null,null,null,null,null,null,null,null,null,null,null,null,null,null,null,null,null,null,null,null,null,null,null,null,null,null,null,null,null,null,null,null,null,null,null,null,null,null,null,null,"CGT - Cummins Generator Technologies -  Wuxi, China"]
[null,null,null,null,null,null,null,null,null,null,null,null,null,null,null,null,null,null,null,null,null,null,null,null,null,null,null,null,null,null,null,null,null,null,null,null,null,null,null,null,null,null,null,"CHU_Hungary"]
[null,null,null,null,null,null,null,null,null,null,null,null,null,null,null,null,null,null,null,null,null,null,null,null,null,null,null,null,null,null,null,null,null,null,null,null,null,null,null,null,null,null,null,"CIC_Cummins Industrial Center - Seymour, IN, USA"]
[null,null,null,null,null,null,null,null,null,null,null,null,null,null,null,null,null,null,null,null,null,null,null,null,null,null,null,null,null,null,null,null,null,null,null,null,null,null,null,null,null,null,null,"CMEP_Cummins Midrange Engine Plant - Columbus, IN, USA"]
[null,null,null,null,null,null,null,null,null,null,null,null,null,null,null,null,null,null,null,null,null,null,null,null,null,null,null,null,null,null,null,null,null,null,null,null,null,null,null,null,null,null,null,"CNGE_Cummins Clovis Natural Gas Engine - Clovis, NM"]
[null,null,null,null,null,null,null,null,null,null,null,null,null,null,null,null,null,null,null,null,null,null,null,null,null,null,null,null,null,null,null,null,null,null,null,null,null,null,null,null,null,null,null,"CPG - CPGC,Cummins Power Generation China, Wuhan,China"]
[null,null,null,null,null,null,null,null,null,null,null,null,null,null,null,null,null,null,null,null,null,null,null,null,null,null,null,null,null,null,null,null,null,null,null,null,null,null,null,null,null,null,null,"CPG - FRID_Cummins Power Generation Fridley, MN, USA"]
[null,null,null,null,null,null,null,null,null,null,null,null,null,null,null,null,null,null,null,null,null,null,null,null,null,null,null,null,null,null,null,null,null,null,null,null,null,null,null,null,null,null,null,"CPG - KEP, Kothrud Engine Plant, Pune, India"]
[null,null,null,null,null,null,null,null,null,null,null,null,null,null,null,null,null,null,null,null,null,null,null,null,null,null,null,null,null,null,null,null,null,null,null,null,null,null,null,null,null,null,null,"CPG - PGBU,Phaltan, Megasite,India"]
[null,null,null,null,null,null,null,null,null,null,null,null,null,null,null,null,null,null,null,null,null,null,null,null,null,null,null,null,null,null,null,null,null,null,null,null,null,null,null,null,null,null,null,"CPG - PHP,SEZ,Phaltan Megasite,India"]
[null,null,null,null,null,null,null,null,null,null,null,null,null,null,null,null,null,null,null,null,null,null,null,null,null,null,null,null,null,null,null,null,null,null,null,null,null,null,null,null,null,null,null,"CPG - SLP_Cummins Power Generation - San Luis Potosi, Mexico"]
[null,null,null,null,null,null,null,null,null,null,null,null,null,null,null,null,null,null,null,null,null,null,null,null,null,null,null,null,null,null,null,null,null,null,null,null,null,null,null,null,null,null,null,"CSP_Singapore - Singapore"]
[null,null,null,null,null,null,null,null,null,null,null,null,null,null,null,null,null,null,null,null,null,null,null,null,null,null,null,null,null,null,null,null,null,null,null,null,null,null,null,null,null,null,null,"CTT - CBL_Cummins Turbo Technology - Guarulhos, Sao Paulo, Brazil"]
[null,null,null,null,null,null,null,null,null,null,null,null,null,null,null,null,null,null,null,null,null,null,null,null,null,null,null,null,null,null,null,null,null,null,null,null,null,null,null,null,null,null,null,"CTT - IDP_Cummins Turbo Technology - Dewas, India"]
[null,null,null,null,null,null,null,null,null,null,null,null,null,null,null,null,null,null,null,null,null,null,null,null,null,null,null,null,null,null,null,null,null,null,null,null,null,null,null,null,null,null,null,"CTT - IPP_Cummins Turbo Technology - Pithampur, India"]
[null,null,null,null,null,null,null,null,null,null,null,null,null,null,null,null,null,null,null,null,null,null,null,null,null,null,null,null,null,null,null,null,null,null,null,null,null,null,null,null,null,null,null,"CTT - IRP_Cummins Turbo Technology - Rudrapur, India"]
[null,null,null,null,null,null,null,null,null,null,null,null,null,null,null,null,null,null,null,null,null,null,null,null,null,null,null,null,null,null,null,null,null,null,null,null,null,null,null,null,null,null,null,"CTT - PP_Cummins Turbo Technology - Palmetto - Ladson, USA"]
[null,null,null,null,null,null,null,null,null,null,null,null,null,null,null,null,null,null,null,null,null,null,null,null,null,null,null,null,null,null,null,null,null,null,null,null,null,null,null,null,null,null,null,"CTT - UK HTC_Cummins Turbo Technology - Production -Huddersfield, UK"]
[null,null,null,null,null,null,null,null,null,null,null,null,null,null,null,null,null,null,null,null,null,null,null,null,null,null,null,null,null,null,null,null,null,null,null,null,null,null,null,null,null,null,null,"CTT - Wuxi - Cummins Turbo Technologies - Wuxi,China"]
[null,null,null,null,null,null,null,null,null,null,null,null,null,null,null,null,null,null,null,null,null,null,null,null,null,null,null,null,null,null,null,null,null,null,null,null,null,null,null,null,null,null,null,"CTU_Cummins Makina Sanayi Ve Ticaret LT - Istanbul, Turkey"]
[null,null,null,null,null,null,null,null,null,null,null,null,null,null,null,null,null,null,null,null,null,null,null,null,null,null,null,null,null,null,null,null,null,null,null,null,null,null,null,null,null,null,null,"DAV_Cummins Daventry Engine Plant - Daventry, UK"]
[null,null,null,null,null,null,null,null,null,null,null,null,null,null,null,null,null,null,null,null,null,null,null,null,null,null,null,null,null,null,null,null,null,null,null,null,null,null,null,null,null,null,null,"DCM - SLP_Cummins S de RL de CV - San Luis Potosi, Mexico"]
[null,null,null,null,null,null,null,null,null,null,null,null,null,null,null,null,null,null,null,null,null,null,null,null,null,null,null,null,null,null,null,null,null,null,null,null,null,null,null,null,null,null,null,"DEP_Cummins Darlington Engine Plant - Darlington, UK"]
[null,null,null,null,null,null,null,null,null,null,null,null,null,null,null,null,null,null,null,null,null,null,null,null,null,null,null,null,null,null,null,null,null,null,null,null,null,null,null,null,null,null,null,"DRC - CBN_Cummins Diesel Recon - Cumbernauld, Scotland"]
[null,null,null,null,null,null,null,null,null,null,null,null,null,null,null,null,null,null,null,null,null,null,null,null,null,null,null,null,null,null,null,null,null,null,null,null,null,null,null,null,null,null,null,"DRC - RMP_Cummins Diesel Recon - Memphis, TN, USA"]
[null,null,null,null,null,null,null,null,null,null,null,null,null,null,null,null,null,null,null,null,null,null,null,null,null,null,null,null,null,null,null,null,null,null,null,null,null,null,null,null,null,null,null,"DRC - SLP_Cummins Diesel Recon S de RL de CV - San Luis Potosi, Mexico"]
[null,null,null,null,null,null,null,null,null,null,null,null,null,null,null,null,null,null,null,null,null,null,null,null,null,null,null,null,null,null,null,null,null,null,null,null,null,null,null,null,null,null,null,"FBU - CFB_Cummins Filtration - Guarulhos, Sao Paulo, Brazil"]
[null,null,null,null,null,null,null,null,null,null,null,null,null,null,null,null,null,null,null,null,null,null,null,null,null,null,null,null,null,null,null,null,null,null,null,null,null,null,null,null,null,null,null,"FBU - CFC - Cummins Filtration China - Pu Dong, Shanghai, China"]
[null,null,null,null,null,null,null,null,null,null,null,null,null,null,null,null,null,null,null,null,null,null,null,null,null,null,null,null,null,null,null,null,null,null,null,null,null,null,null,null,null,null,null,"FBU - CFQ_Cummins Filtration - Quimper, France"]
[null,null,null,null,null,null,null,null,null,null,null,null,null,null,null,null,null,null,null,null,null,null,null,null,null,null,null,null,null,null,null,null,null,null,null,null,null,null,null,null,null,null,null,"FBU - CKV_Cummins Filtration - Cookeville,TN ,USA"]
[null,null,null,null,null,null,null,null,null,null,null,null,null,null,null,null,null,null,null,null,null,null,null,null,null,null,null,null,null,null,null,null,null,null,null,null,null,null,null,null,null,null,null,"FBU - EDC_Cummins Filtration - Walton, KY"]
[null,null,null,null,null,null,null,null,null,null,null,null,null,null,null,null,null,null,null,null,null,null,null,null,null,null,null,null,null,null,null,null,null,null,null,null,null,null,null,null,null,null,null,"FBU - FSA_Cummins Filtration - Pietemaritzburg, South Africa"]
[null,null,null,null,null,null,null,null,null,null,null,null,null,null,null,null,null,null,null,null,null,null,null,null,null,null,null,null,null,null,null,null,null,null,null,null,null,null,null,null,null,null,null,"FBU - NVE_Cummins Filtration - Neillsville, WI"]
[null,null,null,null,null,null,null,null,null,null,null,null,null,null,null,null,null,null,null,null,null,null,null,null,null,null,null,null,null,null,null,null,null,null,null,null,null,null,null,null,null,null,null,"FBU - VIC_Cummins Filtration - Kilsyth, Victoria, Australia"]
[null,null,null,null,null,null,null,null,null,null,null,null,null,null,null,null,null,null,null,null,null,null,null,null,null,null,null,null,null,null,null,null,null,null,null,null,null,null,null,null,null,null,null,"FSB - CFS_Cummins Fuel System,Phaltan,India"]
[null,null,null,null,null,null,null,null,null,null,null,null,null,null,null,null,null,null,null,null,null,null,null,null,null,null,null,null,null,null,null,null,null,null,null,null,null,null,null,null,null,null,null,"FSB - CSV_Cummins Fuel Systems - Cummins Scania Venture - Columbus, IN, USA"]
[null,null,null,null,null,null,null,null,null,null,null,null,null,null,null,null,null,null,null,null,null,null,null,null,null,null,null,null,null,null,null,null,null,null,null,null,null,null,null,null,null,null,null,"FSB - FSC_Cummins Fuel Systems - Wuhan, China"]
[null,null,null,null,null,null,null,null,null,null,null,null,null,null,null,null,null,null,null,null,null,null,null,null,null,null,null,null,null,null,null,null,null,null,null,null,null,null,null,null,null,null,null,"FSB - FSP_Cummins Fuel Systems - Columbus, IN, USA"]
[null,null,null,null,null,null,null,null,null,null,null,null,null,null,null,null,null,null,null,null,null,null,null,null,null,null,null,null,null,null,null,null,null,null,null,null,null,null,null,null,null,null,null,"FSB - JFS_Cummins Fuel Systems - El Paso, TX - Juarez, Mexico"]
[null,null,null,null,null,null,null,null,null,null,null,null,null,null,null,null,null,null,null,null,null,null,null,null,null,null,null,null,null,null,null,null,null,null,null,null,null,null,null,null,null,null,null,"FSB - XJS_Cummins Fuel Systems - Xtreme-Pressure Injection - El Paso, TX, Juarez, Mexico"]
[null,null,null,null,null,null,null,null,null,null,null,null,null,null,null,null,null,null,null,null,null,null,null,null,null,null,null,null,null,null,null,null,null,null,null,null,null,null,null,null,null,null,null,"FSB - XPIC_Cummins Fuel Systems - Xtreme-Pressure Injection - Columbus, IN, USA"]
[null,null,null,null,null,null,null,null,null,null,null,null,null,null,null,null,null,null,null,null,null,null,null,null,null,null,null,null,null,null,null,null,null,null,null,null,null,null,null,null,null,null,null,"FSB - XPJ_Cummins Fuel Systems - Xtreme Pressure Injection - El Paso, TX, Juarez, Mexico"]
[null,null,null,null,null,null,null,null,null,null,null,null,null,null,null,null,null,null,null,null,null,null,null,null,null,null,null,null,null,null,null,null,null,null,null,null,null,null,null,null,null,null,null,"FSB - XPS_Cummins Fuel Systems - Xtreme-Pressure Injection - Sodertalje, Sweden"]
[null,null,null,null,null,null,null,null,null,null,null,null,null,null,null,null,null,null,null,null,null,null,null,null,null,null,null,null,null,null,null,null,null,null,null,null,null,null,null,null,null,null,null,"GEX_Cummins Global Engine Exchange - Columbus, IN, USA"]
[null,null,null,null,null,null,null,null,null,null,null,null,null,null,null,null,null,null,null,null,null,null,null,null,null,null,null,null,null,null,null,null,null,null,null,null,null,null,null,null,null,null,null,"HDM_Cummins Heavy Duty Materials - Columbus, IN, USA"]
[null,null,null,null,null,null,null,null,null,null,null,null,null,null,null,null,null,null,null,null,null,null,null,null,null,null,null,null,null,null,null,null,null,null,null,null,null,null,null,null,null,null,null,"JEP_Cummins Jamestown Engine Plant - Lakewood, NY, USA"]
[null,null,null,null,null,null,null,null,null,null,null,null,null,null,null,null,null,null,null,null,null,null,null,null,null,null,null,null,null,null,null,null,null,null,null,null,null,null,null,null,null,null,null,"LDD_Cummins Light Duty Diesel - Columbus, IN, USA"]
[null,null,null,null,null,null,null,null,null,null,null,null,null,null,null,null,null,null,null,null,null,null,null,null,null,null,null,null,null,null,null,null,null,null,null,null,null,null,null,null,null,null,null,"ME1_Cummins Middle East FZE - Dubai, UAE"]
[null,null,null,null,null,null,null,null,null,null,null,null,null,null,null,null,null,null,null,null,null,null,null,null,null,null,null,null,null,null,null,null,null,null,null,null,null,null,null,null,null,null,null,"NPBU - Electrified Power, CEP, Columbus, IN, USA"]
[null,null,null,null,null,null,null,null,null,null,null,null,null,null,null,null,null,null,null,null,null,null,null,null,null,null,null,null,null,null,null,null,null,null,null,null,null,null,null,null,null,null,null,"NPBU - Electrified Power, Milton Keynes, UK"]
[null,null,null,null,null,null,null,null,null,null,null,null,null,null,null,null,null,null,null,null,null,null,null,null,null,null,null,null,null,null,null,null,null,null,null,null,null,null,null,null,null,null,null,"NPBU - Electrified Power, Talent, OR, USA"]
[null,null,null,null,null,null,null,null,null,null,null,null,null,null,null,null,null,null,null,null,null,null,null,null,null,null,null,null,null,null,null,null,null,null,null,null,null,null,null,null,null,null,null,"NPBU - New Power, Herten Germany"]
[null,null,null,null,null,null,null,null,null,null,null,null,null,null,null,null,null,null,null,null,null,null,null,null,null,null,null,null,null,null,null,null,null,null,null,null,null,null,null,null,null,null,null,"NPBU - New Power, Mississauga, Ontario, CAN"]
[null,null,null,null,null,null,null,null,null,null,null,null,null,null,null,null,null,null,null,null,null,null,null,null,null,null,null,null,null,null,null,null,null,null,null,null,null,null,null,null,null,null,null,"PDC - DAV_United Kingdom Logistics Center - Daventry,UK"]
[null,null,null,null,null,null,null,null,null,null,null,null,null,null,null,null,null,null,null,null,null,null,null,null,null,null,null,null,null,null,null,null,null,null,null,null,null,null,null,null,null,null,null,"PDC - India,Part Distribution Center,Phaltan,Megasite,Pune,India"]
[null,null,null,null,null,null,null,null,null,null,null,null,null,null,null,null,null,null,null,null,null,null,null,null,null,null,null,null,null,null,null,null,null,null,null,null,null,null,null,null,null,null,null,"PDC - MDC_Parts Distribution Center  - Memphis, TN, USA"]
[null,null,null,null,null,null,null,null,null,null,null,null,null,null,null,null,null,null,null,null,null,null,null,null,null,null,null,null,null,null,null,null,null,null,null,null,null,null,null,null,null,null,null,"PDC - Rumst - Parts Distribution Center - Rumst, Belgium"]
[null,null,null,null,null,null,null,null,null,null,null,null,null,null,null,null,null,null,null,null,null,null,null,null,null,null,null,null,null,null,null,null,null,null,null,null,null,null,null,null,null,null,null,"PDC - SLP_Cummins S de RL de CV - Parts Distribution Center - San Luis Potosi, Mexico"]
[null,null,null,null,null,null,null,null,null,null,null,null,null,null,null,null,null,null,null,null,null,null,null,null,null,null,null,null,null,null,null,null,null,null,null,null,null,null,null,null,null,null,null,"PDC - SNG_Cummins Engine - Parts Distribution Center - Singapore"]
[null,null,null,null,null,null,null,null,null,null,null,null,null,null,null,null,null,null,null,null,null,null,null,null,null,null,null,null,null,null,null,null,null,null,null,null,null,null,null,null,null,null,null,"PDC China CSCO  - Part Distribution Center, Shanghai Pu Dong, China"]
[null,null,null,null,null,null,null,null,null,null,null,null,null,null,null,null,null,null,null,null,null,null,null,null,null,null,null,null,null,null,null,null,null,null,null,null,null,null,null,null,null,null,null,"RDC - ARD_Cummins Engine - Regional Distribution Center - Atlanta, GA"]
[null,null,null,null,null,null,null,null,null,null,null,null,null,null,null,null,null,null,null,null,null,null,null,null,null,null,null,null,null,null,null,null,null,null,null,null,null,null,null,null,null,null,null,"RDC - HRD_Cummins Engine - Regional Distribution Center - Harrisburg, PA"]
[null,null,null,null,null,null,null,null,null,null,null,null,null,null,null,null,null,null,null,null,null,null,null,null,null,null,null,null,null,null,null,null,null,null,null,null,null,null,null,null,null,null,null,"RECON DTA - Megasite, Phaltan, India"]
[null,null,null,null,null,null,null,null,null,null,null,null,null,null,null,null,null,null,null,null,null,null,null,null,null,null,null,null,null,null,null,null,null,null,null,null,null,null,null,null,null,null,null,"RECON SEZ - Pithampur, India"]
[null,null,null,null,null,null,null,null,null,null,null,null,null,null,null,null,null,null,null,null,null,null,null,null,null,null,null,null,null,null,null,null,null,null,null,null,null,null,null,null,null,null,null,"RMEP_Cummins Rocky Mount Engine Plant - Battleboro, NC, USA"]
[null,null,null,null,null,null,null,null,null,null,null,null,null,null,null,null,null,null,null,null,null,null,null,null,null,null,null,null,null,null,null,null,null,null,null,null,null,null,null,null,null,null,null,"SLP - XBU_Cummins Cross Business Unit Warehouse- San Luis Potosi, Mexico"]
[null,null,null,null,null,null,null,null,null,null,null,null,null,null,null,null,null,null,null,null,null,null,null,null,null,null,null,null,null,null,null,null,null,null,null,null,null,null,null,null,null,null,null,"TCL-1, Tata Cummins Ltd.,Jamshedpur,India"]
[null,null,null,null,null,null,null,null,null,null,null,null,null,null,null,null,null,null,null,null,null,null,null,null,null,null,null,null,null,null,null,null,null,null,null,null,null,null,null,null,null,null,null,"TCL-2, Tata Cummins Ltd.,Phaltan,Megasite,Pune,India"]
[null,null,null,null,null,null,null,null,null,null,null,null,null,null,null,null,null,null,null,null,null,null,null,null,null,null,null,null,null,null,null,null,null,null,null,null,null,null,null,null,null,null,null,"TCL-3 Tata Cummins Ltd.,Phaltan,Megasite,Pune,India"]
[null,null,null,null,null,null,null,null,null,null,null,null,null,null,null,null,null,null,null,null,null,null,null,null,null,null,null,null,null,null,null,null,null,null,null,null,null,null,null,null,null,null,null,"WWK_Cummins World Wide Kitting, Columbus, Indiana, USA"]
[null,null,null,null,null,null,null,null,null,null,null,null,null,null,null,null,null,null,null,null,null,null,null,null,null,null,null,null,null,null,null,null,null,null,null,null,null,null,null,null,null,null,null,"XAD_Cummins Comercializadora S de RL de CV - San Luis Potosi, Mexico"]
[null,null,null,null,null,null,null,null,null,null,null,null,null,null,null,null,null,null,null,null,null,null,null,null,null,null,null,null,null,null,null,null,null,null,null,null,null,null,null,null,null,null,null,"XPS_Scania Accounts Payable - Sodertalje, Sweden"]

{"sheet":"PCDS Instructions","index":2,"n_rows":57,"n_cols":4,"rows_kept":57,"cut":false,"hidden":false,"merged":[[55,1,55,3],[56,1,56,3],[50,1,50,3],[51,2,51,3],[52,2,52,3],[53,1,53,3],[54,1,54,3],[45,2,45,3],[46,2,46,3],[47,2,47,3],[48,2,48,3],[49,2,49,3],[40,2,40,3],[41,1,41,3],[42,2,42,3],[43,2,43,3],[44,2,44,3],[39,2,39,3],[28,2,28,3],[29,2,29,3],[30,2,30,3],[31,2,31,3],[32,2,32,3],[33,2,33,3],[34,1,34,3],[36,2,36,3],[37,2,37,3],[38,2,38,3],[35,2,35,3],[10,2,11,2],[12,1,12,3],[14,1,15,1],[14,2,16,2],[27,2,27,3],[17,1,17,3],[18,2,18,3],[19,2,19,3],[20,2,20,3],[21,2,21,3],[22,2,22,3],[23,2,23,3],[24,1,24,3],[25,2,25,3],[26,2,26,3],[0,1,0,3],[1,1,4,3],[5,1,5,3],[6,1,6,3],[7,2,9,2]]}
[null,"CHECK YOUR WORK - CONFIRM CALCULATED FIELDS ACCURATE"]
[null,"PACKAGING COST DATA SHEET"]
[]
[]
[]
[null,"SUPPLIER INSTRUCTIONS"]
[null,"COMPONENT PART - PROPOSAL INFORMATION"]
[null,"PART NUMBER","All information in this section is the same as that of the corresponding PSDS section and is so structured to facilitate traceability of a printed copy.","PROPOSAL LEVEL"]
[null,"REV LEVEL",null,"SUBMISSION DATE"]
[null,"PART NAME",null,"REV LEVEL"]
[null,"ANNUAL VOLUME","Fields color coded blue contain information auto-populated from the corresponding field of the PSDS.","SOURCING MANAGER"]
[null,"PFEP PROVIDED"]
[null,"SUPPLIER INFORMATION"]
[null,"COMPANY NAME","Fields color coded blue contain information auto-populated from the corresponding field of the PSDS.","SUPPLIER ID NO."]
[null,"SUPPLIER ADDRESS (BUSINESS OFFICE)","Enter the Supplier Business Office Address and Commercial Contact Information.","SALES REPRESENTATIVE"]
[null,null,null,"PHONE NUMBER"]
[null,null,null,"EMAIL ADDRESS"]
[null,"PRIMARY CONTAINER INFORMATION"]
[null,"CONTAINER TYPE","Check box to indicate the design style of the primary container.  Check 'Other' and describe, if design style differs from choices provided."]
[null,"CONTAINER TARE WT","Please provide empty container/primary packaging weight. Empty container weight is weight of container without parts or internal dunnage. "]
[null,"MATERIAL TYPE","Check box to indicate the material construction of the primary container.  Check 'Other' and describe, if material differs from choices provided."]
[null,"FLUTE CONFIGURATION","Indicate the corrugated flute configuration (i.e.: A, B, C, BC) of the container material. "]
[null,"BURST / ECT","Indicate the corrugated Mullen Burst Strength (PSI) or Edge Crush Test (Lbs) of the container material."]
[null,"COST PER CONTAINER","Indicate the Cost (in US Dollars) of a single primary container."]
[null,"PRIMARY CONTAINER INTERNAL DUNNAGE INFORMATION"]
[null,"DUNNAGE TYPE","Check boxes to indicate all dunnage types employed."]
[null,"DESCRIPTION/QUALIFIER","Provide a description or qualifier for each dunnage type employed, as applicable."]
[null,"MATERIAL","Indicate the material of each dunnage type employed."]
[null,"QUANTITY PER CONTAINER","Indicate the quantity of each dunnage type employed per one single primary container."]
[null,"KILOGRAMS PER ITEM","Indicate the weight in kilograms of one single item of each dunnage type employed."]
[null,"KILOGRAMS PER CONTAINER","The total dunnage tare weight by item will auto-calculate from the corresponding fields."]
[null,"COST PER EACH","Indicate the cost in US Dollars of one single dunnage component for each dunnage type employed.  "]
[null,"COST PER CONTAINER","The Recurring Cost per Container of each dunnage type employed will automatically calculate."]
[null,"SUBTOTAL COST/CONTR","The Subtotal of Dunnage Recurring Cost per Container will automatically calculate."]
[null,"SECONDARY CONTAINER / PALLET INFORMATION"]
[null,"SECONDARY CONTAINER","A container in which one or more primary containers is packaged or for consolidating the material into a single unit load."]
[null,"CONTAINER TYPE","Check box to indicate the type of the secondary container.  Check 'Other' and describe, if type differs from choices provided."]
[null,"DESCRIPTION/QUALIFIER","Provide a description or qualifier for the container type, as applicable (i.e.: stringer, block, winged)."]
[null,"MATERIAL","Indicate the material of the container (i.e.: hardwood, softwood, manufactured wood types, plastic, steel)"]
[null,"ISPM -15 CERTIFIED","Check 'YES' box if container is ISPM-15 Certified."]
[null,"COST PER CONTAINER","Indicate the Cost (in US Dollars) of the secondary container."]
[null,"CLOSURE MATERIAL INFORMATION"]
[null,"MATERIAL TYPE","Check boxes to indicate all material types employed.  Check 'Other' and describe, if material type differs from choices provided."]
[null,"MATERIAL/DESCRIPTION","Indicate the material, description and/or qualifer for each material type employed."]
[null,"QUANTITY PER UNIT LOAD","Indicate the quantity of each material type employed per Unit Load. Include primary container labels in 'Label Quantity'."]
[null,"KILOGRAMS PER ITEM","Indicate the weight in kilograms for one unit of each material type employed - where \"units\" may be \"each\" or  \"meter\".  For 'Other' indicate the unit of measure."]
[null,"KILOGRAMS PER UNIT LOAD","The total material weight by item will auto-calculate from the corresponding fields."]
[null,"COST PER","Indicate the cost of one unit of each material type employed - where \"units\" is \"each\" or \"meter\".  For 'Other' indicate the unit of measure."]
[null,"COST PER UNIT LOAD","The Recurring Cost per Unit Load of each material type employed will automatically calculate."]
[null,"SUBTOTAL COST/CONTR","The Subtotal of Closure Material Recurring Cost per Unit Load will automatically calculate."]
[null,"PACKAGING MATERIAL COST AND WEIGHT SUMMARY"]
[null,"QUANTITY FIELDS","The quantity fields will auto-populate from the corresponding field of the PSDS."]
[null,"COST/WEIGHT FIELDS","The cost/weight fields will automatically calculate."]
[null,"CHECK YOUR WORK - CONFIRM CALCULATED FIELDS ACCURATE"]
[null,"PSDS approval indicates acceptance of the supplier proposal however does not relieve the supplier of responsibility for packaging performance to the point of use."]
[null,"This document is the property of Cummins Inc. and cannot be revised without permission of the Cummins Global Packaging Council."]
[null,"PDS - REV 002 - DEC 2019"]

{"sheet":"PCDS","index":3,"n_rows":136,"n_cols":43,"rows_kept":136,"cut":false,"hidden":false,"merged":[[6,32,7,35],[112,1,112,30],[113,1,113,30],[83,27,83,29],[85,2,85,10],[85,11,85,13],[85,20,85,26],[85,27,85,29],[87,27,87,29],[83,2,83,4],[83,6,83,8],[83,11,83,13],[83,15,83,17],[83,19,83,21],[83,23,83,25],[92,1,92,30],[94,2,94,4],[94,6,94,8],[94,11,94,13],[94,14,94,18],[94,19,94,21],[94,23,94,25],[94,27,94,29],[104,6,104,8],[108,13,108,15],[102,27,102,29],[108,3,108,5],[89,6,89,8],[111,1,111,30],[91,1,91,30],[95,23,95,25],[104,27,104,29],[89,27,89,29],[95,2,95,4],[95,6,95,8],[95,10,95,14],[95,15,95,17],[95,19,95,21],[95,27,95,29],[96,2,96,4],[96,6,96,8],[98,2,98,4],[98,23,98,25],[98,27,98,29],[100,27,100,29],[108,23,108,25],[108,8,108,10],[108,18,108,20],[98,6,98,8],[79,19,79,21],[79,23,79,25],[79,27,79,29],[96,11,96,13],[96,15,96,17],[96,19,96,21],[96,23,96,25],[96,27,96,29],[81,27,81,29],[80,27,80,29],[98,11,98,13],[98,15,98,17],[98,19,98,21],[81,2,81,4],[81,6,81,8],[81,11,81,13],[81,15,81,17],[81,19,81,21],[81,23,81,25],[72,20,72,21],[72,23,72,24],[72,27,72,29],[74,15,74,25],[74,27,74,29],[72,6,72,8],[72,10,72,14],[80,2,80,4],[80,6,80,8],[80,10,80,14],[80,15,80,17],[80,19,80,21],[80,23,80,25],[77,1,77,30],[79,2,79,4],[79,6,79,8],[79,11,79,13],[79,14,79,18],[68,20,68,21],[68,23,68,24],[68,27,68,29],[70,20,70,21],[70,23,70,24],[70,27,70,29],[68,6,68,8],[70,6,70,8],[68,10,68,14],[70,10,70,14],[64,20,64,21],[64,23,64,24],[64,27,64,29],[66,20,66,21],[66,23,66,24],[66,27,66,29],[59,1,59,30],[60,27,60,29],[61,20,61,21],[61,23,61,24],[61,25,62,25],[61,27,61,29],[62,20,62,21],[62,23,62,24],[62,27,62,29],[62,6,62,8],[64,6,64,8],[66,6,66,8],[64,10,64,14],[66,10,66,14],[62,10,62,14],[56,27,56,29],[47,1,47,30],[48,27,48,29],[49,27,49,29],[52,27,52,29],[52,6,52,9],[54,6,54,9],[56,6,56,9],[52,11,52,17],[54,11,54,17],[56,11,56,17],[49,6,49,9],[49,11,49,17],[50,6,50,9],[50,11,50,17],[50,27,50,29],[44,27,44,29],[38,21,38,22],[38,24,38,25],[38,27,38,29],[40,21,40,22],[40,24,40,25],[40,27,40,29],[32,27,32,29],[54,27,54,29],[34,27,34,29],[36,21,36,22],[36,24,36,25],[36,27,36,29],[36,11,36,15],[42,21,42,22],[42,24,42,25],[42,27,42,29],[19,32,21,33],[19,34,21,38],[22,27,22,29],[22,32,24,33],[22,34,24,38],[40,11,40,15],[38,11,38,15],[26,10,26,11],[26,16,26,18],[26,20,26,25],[26,27,26,29],[29,1,29,30],[30,24,30,25],[14,32,15,33],[14,34,15,38],[15,6,15,15],[15,16,15,21],[15,22,15,30],[16,1,16,30],[16,32,18,33],[16,34,18,38],[17,1,17,30],[13,1,15,5],[13,6,13,15],[13,16,13,21],[13,22,13,30],[14,6,14,15],[14,16,14,21],[14,22,14,30],[10,32,10,38],[11,1,11,30],[11,32,12,38],[12,1,12,5],[12,6,12,15],[12,16,12,21],[12,22,12,30],[9,1,9,5],[9,6,9,10],[9,16,9,21],[9,22,9,30],[10,1,10,30],[9,13,9,15],[1,1,4,27],[5,1,5,30],[6,1,6,30],[7,1,7,5],[7,6,7,10],[7,11,7,13],[7,14,7,15],[7,16,7,21],[7,22,7,30],[8,1,8,5],[8,6,8,15],[8,16,8,21],[8,22,8,25],[42,11,42,15],[34,21,34,22],[34,24,34,25],[32,21,32,22],[32,24,32,25],[20,6,20,14],[22,6,22,14],[24,6,24,14],[24,20,24,29],[32,6,32,9],[32,11,32,15],[38,6,38,9],[40,6,40,9],[42,6,42,9],[8,26,8,28],[8,29,8,30],[31,21,31,22],[31,24,31,25],[31,27,31,29],[30,27,30,29],[100,2,100,10],[100,11,100,13],[100,20,100,26],[32,2,32,4],[34,2,34,4],[70,2,70,4],[72,2,72,4],[50,2,50,4],[52,2,52,4],[54,2,54,4],[56,2,56,4],[62,2,62,4],[64,2,64,4],[66,2,66,4],[68,2,68,4],[36,2,36,4],[38,2,38,4],[40,2,40,4],[42,2,42,4],[49,2,49,4],[44,16,44,25],[34,6,34,9],[36,6,36,9],[34,11,34,15]]}
[null,{"$f":"PSDS!B1","v":"! Required entries are blank !"}]
[null,"PACKAGING COST DATA SHEET"]
[]
[]
[]
[]
[null,"COMPONENT PART - PROPOSAL INFORMATION",null,null,null,null,null,null,null,null,null,null,null,null,null,null,null,null,null,null,null,null,null,null,null,null,null,null,null,null,null,null,"CONTAINER STYLE"]
[null,"PART NUMBER",null,null,null,null,{"$f":"IF(PSDS!G8<>\"\",PSDS!G8,\"\")","v":""},null,null,null,null,"REV LEVEL",null,null,{"$f":"IF(PSDS!O8<>\"\",PSDS!O8,\"\")","v":""},null,"PROPOSAL LEVEL",null,null,null,null,null,{"$f":"IF(PSDS!W8=\"\",\"\",PSDS!W8)","v":""}]
[null,"PART NAME",null,null,null,null,{"$f":"IF(PSDS!G9<>\"\",PSDS!G9,\"\")","v":""},null,null,null,null,null,null,null,null,null,"SUBMISSION DATE",null,null,null,null,null,{"$f":"IF(PSDS!W9=\"\",\"\",PSDS!W9)","v":""},null,null,null,"TYPE",null,null,{"$f":"IF(PSDS!AD9<>\"\",PSDS!AD9,\"\")","v":""},null,null,"RSC - 0201","HSC - 0200","FTD - 0301","FOL - 0203"]
[null,"ANNUAL VOLUME",null,null,null,null,{"$f":"IF(PSDS!G10<>\"\",PSDS!G10,\"\")","v":""},null,null,null,null,"PFEP",null,{"$f":"IF(PSDS!N10=\"\",\"\",PSDS!N10)","v":""},null,null,"SOURCING MANAGER",null,null,null,null,null,{"$f":"IF(PSDS!W10<>\"\",PSDS!W10,\"\")","v":""}]
[]
[null,"SUPPLIER INFORMATION",null,null,null,null,null,null,null,null,null,null,null,null,null,null,null,null,null,null,null,null,null,null,null,null,null,null,null,null,null,null,"COLOR LEGEND"]
[null,"COMPANY NAME",null,null,null,null,{"$f":"IF(PSDS!G13<>\"\",PSDS!G13,\"\")","v":""},null,null,null,null,null,null,null,null,null,"SUPPLIER ID NO.",null,null,null,null,null,{"$f":"IF(PSDS!W13<>\"\",PSDS!W13,\"\")","v":""}]
[null,"SUPPLIER ADDRESS            (BUSINESS OFFICE)",null,null,null,null,null,null,null,null,null,null,null,null,null,null,"SALES REPRESENTATIVE"]
[null,null,null,null,null,null,null,null,null,null,null,null,null,null,null,null,"PHONE NUMBER",null,null,null,null,null,null,null,null,null,null,null,null,null,null,null,"WHITE",null,"GENERAL INFORMATION - MANUAL INPUT"]
[null,null,null,null,null,null,null,null,null,null,null,null,null,null,null,null,"EMAIL ADDRESS"]
[null,null,null,null,null,null,null,null,null,null,null,null,null,null,null,null,null,null,null,null,null,null,null,null,null,null,null,null,null,null,null,null,"YELLOW",null,"COST INFORMATION - MANUAL INPUT"]
[null,"PRIMARY CONTAINER INFORMATION"]
[null,null,"EXPENDABLE CONTAINER TYPE"]
[null,null,null,null,null,null,null,null,null,null,null,null,null,null,null,null,null,null,null,null,null,null,null,null,null,null,null,null,null,null,null,null,"GREEN",null,"COST INFORMATION - CALCULATED"]
[null,null,"Container Style"]
[]
[null,null,"Other (specify)",null,null,null,null,null,null,null,null,null,null,null,null,null,null,null,null,null,"Container Tare Weight (kg)",null,null,null,null,null,null,null,null,null,null,null,"BLUE",null,"INFORMATION - CALCULATED OR AUTO-POPULATED"]
[]
[null,null,"Material:",null,null,null,null,null,null,null,null,null,null,null,null,null,"Corrugated Type"]
[]
[null,null,"Material Strength:",null,null,null,null,"Flute Config",null,null,null,null,null,"Burst/ECT",null,null,null,null,null,null,"Cost per Container (USD)",null,null,null,null,null,"="]
[]
[]
[null,"PRIMARY CONTAINER INTERNAL DUNNAGE INFORMATION",null,null,null,null,null,null,null,null,null,null,null,null,null,null,null,null,null,null,null,null,null,null,null,null,null,null,null,null,null,null,null,"Regular Slotted (RSC)","Half Slotted (HSC) w/Cover","Full Telescope (FTD)","Full Overlap (FOL)","Other Style"]
[null,null,"EXPENDABLE DUNNAGE TYPE",null,null,null,null,null,null,null,null,null,null,null,null,null,null,"Qty",null,"Kilograms",null,"Kilograms",null,null,"Cost",null,null,null,null,null,null,null,null,"Single Wall-3 layer","Double Wall-5 layer","Triple Wall-7 layer","Other"]
[null,null,"(Select from the drop down menus)",null,null,null,null,null,null,null,null,null,null,null,null,null,null,"per",null,"per ",null,"per",null,null,"per",null,null,"Cost per"]
[null,null,"Item",null,null,null,"Description",null,null,null,null,"Material",null,null,null,null,null,"Contr",null,"Item",null,"Container",null,null,"Each",null,null,"Container"]
[]
[null,null,null,null,null,null,null,null,null,null,null,null,null,null,null,null,null,null,null,null,null,{"$f":"R35*T35","v":0},null,null,null,null,"=",{"$f":"R35*Y35","v":0},null,null,null,null,null,"Partition","Layer Pad","Die Cut","Tray","VCI","Other"]
[]
[null,null,null,null,null,null,null,null,null,null,null,null,null,null,null,null,null,null,null,null,null,{"$f":"R37*T37","v":0},null,null,null,null,"=",{"$f":"R37*Y37","v":0}]
[]
[null,null,null,null,null,null,null,null,null,null,null,null,null,null,null,null,null,null,null,null,null,{"$f":"R39*T39","v":0},null,null,null,null,"=",{"$f":"R39*Y39","v":0}]
[]
[null,null,null,null,null,null,null,null,null,null,null,null,null,null,null,null,null,null,null,null,null,{"$f":"R41*T41","v":0},null,null,null,null,"=",{"$f":"R41*Y41","v":0}]
[]
[null,null,null,null,null,null,null,null,null,null,null,null,null,null,null,null,null,null,null,null,null,{"$f":"R43*T43","v":0},null,null,null,null,"=",{"$f":"R43*Y43","v":0}]
[]
[null,null,null,null,null,null,null,null,null,null,null,null,null,null,null,null,"Subtotal - Dunnage Cost per Container (USD)",null,null,null,null,null,null,null,null,null,"=",{"$f":"AB43+AB41+AB39+AB37+AB35","v":0}]
[]
[]
[null,"SECONDARY CONTAINER / PALLET INFORMATION"]
[null,null,"EXPENDABLE CONTAINER TYPE",null,null,null,null,null,null,null,null,null,null,null,null,null,null,null,null,null,null,null,null,null,null,null,null,"Cost per"]
[null,null,"Item",null,null,null,"Description",null,null,null,null,"Material",null,null,null,null,null,null,null,"Kilograms",null,null,null,null,null,null,null,"Container"]
[null,null,null,null,null,null,null,null,null,null,null,null,null,null,null,null,null,null,null,null,null,null,null,null,null,null,null,null,null,null,null,null,null,"Pallet","Pallet Carton","Crate","Corrugated box","Dunnage","Other"]
[]
[]
[]
[]
[]
[]
[]
[]
[null,"CLOSURE MATERIAL INFORMATION"]
[null,null,"LABELING & LOAD SECUREMENT",null,null,null,null,null,null,null,null,null,null,null,null,null,"Qty",null,"Kilograms",null,"Kilograms"]
[null,null,"(Select from the drop down menus)",null,null,null,null,null,null,null,null,null,null,null,null,null,"per",null,"per ",null,"per",null,null,"Cost",null,"units",null,"Cost per"]
[null,null,"Item",null,null,null,"Description",null,null,null,"Material",null,null,null,null,null,"Unit Load",null,"Item",null,"Unit Load",null,null,"per",null,null,null,"Unit Load"]
[]
[null,null,null,null,null,null,null,null,null,null,null,null,null,null,null,null,null,null,null,null,{"$f":"Q65*S65","v":0},null,null,null,null,"EA","=",{"$f":"Q65*X65","v":0},null,null,null,null,null,"Label","Strapping","Stretchwrap","Corner/Angle","Other"]
[]
[null,null,null,null,null,null,null,null,null,null,null,null,null,null,null,null,null,null,null,null,{"$f":"Q67*S67","v":0},null,null,null,null,"M","=",{"$f":"Q67*X67","v":0}]
[]
[null,null,null,null,null,null,null,null,null,null,null,null,null,null,null,null,null,null,null,null,{"$f":"Q69*S69","v":0},null,null,null,null,"M","=",{"$f":"Q69*X69","v":0}]
[]
[null,null,null,null,null,null,null,null,null,null,null,null,null,null,null,null,null,null,null,null,{"$f":"Q71*S71","v":0},null,null,null,null,"EA","=",{"$f":"Q71*X71","v":0}]
[]
[null,null,null,null,null,null,null,null,null,null,null,null,null,null,null,null,null,null,null,null,{"$f":"Q73*S73","v":0},null,null,null,null,null,"=",{"$f":"Q73*X73","v":0}]
[]
[null,null,null,null,null,null,null,null,null,null,null,null,null,null,null,"Subtotal - Closure Materials per Unit Load (USD)",null,null,null,null,null,null,null,null,null,null,"=",{"$f":"AB73+AB71+AB69+AB67+AB65","v":0}]
[]
[]
[null,"PACKAGING MATERIAL COST SUMMARY"]
[]
[null,null,"Primary",null,null,null,"Dunnage",null,null,null,null,"Quantity",null,null,"SUBTOTAL COST",null,null,null,null,"Cost",null,null,null,"Cost",null,null,null,"TOTAL COST"]
[null,null,"Container",null,null,null,"Cost per",null,null,null,"Containers per",null,null,null,null,"CONTAINERS",null,null,null,"Secondary",null,null,null,"Closure",null,null,null,"PER"]
[null,null,"Cost",null,null,null,"Container",null,null,null,null,"Unit Load",null,null,null,"w/ Dunnage",null,null,null,"Container",null,null,null,"Materials",null,null,null,"UNIT LOAD"]
[null,null,null,null,null,null,null,null,null,"]"]
[null,"[",{"$f":"AB27","v":0},null,null,"+",{"$f":"AB45","v":0},null,null,"]","x",{"$f":"PSDS!AD22*PSDS!AD23","v":0},null,null,"=",{"$f":"L84*(G84+C84)","v":0},null,null,"+",{"$f":"AB57+AB55+AB53+AB51","v":0},null,null,"+",{"$f":"AB75","v":0},null,null,"=",{"$f":"X84+T84+P84","v":0}]
[]
[null,null,"Quantity Parts per Primary Container",null,null,null,null,null,null,null,null,{"$f":"PSDS!AD21","v":0},null,null,null,null,null,null,null,null,"Quantity Parts per Unit Load",null,null,null,null,null,null,{"$f":"L86*L84","v":0}]
[]
[null,null,null,null,null,null,null,null,null,null,null,null,null,null,null,null,null,null,null,null,null,null,null,null,null,"Recurring Packaging Material Cost per Piece (USD)","=",{"$f":"IFERROR(AB84/AB86,0)","v":0},null,null,null,null,null,null,null,null,null,null,{"$f":"AB88","v":0}]
[]
[null,null,"At annual volume",null,null,null,{"$f":"IFERROR(PSDS!$G$10,0)","v":0},null,null,null,null,null,null,null,null,null,null,null,null,null,null,null,null,null,null,"Estimated Annual Recurring Packaging Material Cost (USD)","=",{"$f":"IFERROR(AB88*PSDS!G10,0)","v":0},null,null,null,null,null,null,null,null,null,null,{"$f":"AB90","v":0}]
[]
[]
[null,"PACKAGING MATERIAL WEIGHT SUMMARY"]
[]
[null,null,"Primary",null,null,null,"Dunnage",null,null,null,null,"Quantity",null,null,"SUBTOTAL WEIGHT",null,null,null,null,"Weight",null,null,null,"Weight",null,null,null,"TOTAL WEIGHT"]
[null,null,"Container",null,null,null,"Weight per",null,null,null,"Containers per",null,null,null,null,"CONTAINERS",null,null,null,"Secondary",null,null,null,"Closure",null,null,null,"PER"]
[null,null,"Weight",null,null,null,"Container",null,null,null,null,"Unit Load",null,null,null,"w/ Dunnage",null,null,null,"Container",null,null,null,"Materials",null,null,null,"UNIT LOAD"]
[]
[null,"[",{"$f":"AB23","v":0},null,null,"+",{"$f":"SUM(V35+V37+V39+V41+V43)","v":0},null,null,"]","x",{"$f":"L84","v":0},null,null,"=",{"$f":"(C99+G99)*L99","v":0},null,null,"+",{"$f":"T51+T53+T55+T57","v":0},null,null,"+",{"$f":"SUM(U65,U67,U69,U71,U73)","v":0},null,null,"=",{"$f":"P99+T99+X99","v":0}]
[]
[null,null,"Quantity Parts per Primary Container",null,null,null,null,null,null,null,null,{"$f":"L86","v":0},null,null,null,null,null,null,null,null,"Quantity Parts per Unit Load",null,null,null,null,null,null,{"$f":"AB86","v":0}]
[]
[null,null,null,null,null,null,null,null,null,null,null,null,null,null,null,null,null,null,null,null,null,null,null,null,null,"Recurring Packaging Material Weight per Piece (kg)","=",{"$f":"IFERROR(AB99/AB101,0)","v":0},null,null,null,null,null,null,null,null,null,null,{"$f":"AB103","v":0}]
[]
[null,null,"At annual volume",null,null,null,{"$f":"IFERROR(PSDS!$G$10,0)","v":0},null,null,null,null,null,null,null,null,null,null,null,null,null,null,null,null,null,null,"Estimated Annual Recurring Packaging Material Weight (kg)","=",{"$f":"IFERROR($AB$103*PSDS!$G$10,0)","v":0},null,null,null,null,null,null,null,null,null,null,{"$f":"AB105","v":0}]
[]
[null,null,null,"Estimated Annual Recurring Packaging Material Weight By Media"]
[null,null,null,"Wood (kg)",null,null,null,null,"Paper (kg)",null,null,null,null,"Plastic (kg)",null,null,null,null,"Steel (kg)",null,null,null,null,"Other (kg)"]
[null,null,null,{"$f":"IFERROR(IF(OR(G25=B118,G25=B119),AB23*G10/L101,0)+IF(OR(L35=B118,L35=B119),V35*G10/L101,0)+(IF(OR(L37=B118,L37=B119),V37*G10/L101,0)+IF(OR(L39=B118,L39=B119),V39*G10/L101,0)+IF(OR(L41=B118,L41=B119),V41*G10/L101,0)+IF(OR(L51=B118,L51=B119),T51*G10/L101/L99,0)+IF(OR(L53=B118,L53=B119),T53*G10/L101/L99,0)+IF(OR(L55=B118,L55=B119),T55*G10/L101/L99,0)+IF(OR(L57=B118,L57=B119),T57*G10/L101/L99,0)+IF(OR(L43=B118,L43=B119),V43*G10/L101,0)+IF(OR(K65=B118,K65=B119),U65*G10/L101/L99,0)+IF(OR(K67=B118,K67=B119),U67*G10/L101/L99,0)+IF(OR(K69=B118,K69=B119),U69*G10/L101/L99,0)+IF(OR(K71=B118,K71=B119),U71*G10/L101/L99,0)+IF(OR(K73=B118,K73=B119),U73*G10/L101/L99,0)),0)","v":0},null,null,null,null,{"$f":"IFERROR(IF(OR(G25=B120,G25=B121,G25=B122,G25=B123),AB23*G10/L101,0)+IF(OR(L35=B120,L35=B121,L35=B122,L35=B123),V35*G10/L101,0)+IF(OR(L37=B120,L37=B121,L37=B122,L37=B123),V37*G10/L101,0)+IF(OR(L39=B120,L39=B121,L39=B122,L39=B123),V39*G10/L101,0)+IF(OR(L41=B120,L41=B121,L41=B122,L41=B123),V41*G10/L101,0)+IF(OR(L43=B120,L43=B121,L43=B122,L43=B123),V43*G10/L101,0)+IF(OR(L51=B120,L51=B121,L51=B122,L51=B123),T51*G10/L101/L99,0)+IF(OR(L53=B120,L53=B121,L53=B122,L53=B123),T53*G10/L101/L99,0)+IF(OR(L55=B120,L55=B121,L55=B122,L55=B123),T55*G10/L101/L99,0)+IF(OR(L57=B120,L57=B121,L57=B122,L57=B123),T57*G10/L101/L99,0)+IF(OR(K65=B120,K65=B121,K65=B122,K65=B123),U65*G10/L101/L99,0)+IF(OR(K67=B120,K67=B121,K67=B122,K67=B123),U67*G10/L101/L99,0)+IF(OR(K69=B120,K69=B121,K69=B122,K69=B123),U69*G10/L101/L99,0)+IF(OR(K71=B120,K71=B121,K71=B122,K71=B123),U71*G10/L101/L99,0)+IF(OR(K73=B120,K73=B121,K73=B122,K73=B123),U73*G10/L101/L99,0),0)","v":0},null,null,null,null,{"$f":"IFERROR(IF(OR(G25=B124,G25=B125,G25=B126,G25=B127,G25=B129,G25=B130,G25=B131,G25=B132,G25=B133,G25=B134,G25=B135),AB23*G10/L101,0)+IF(OR(L35=B124,L35=B125,L35=B126,L35=B127,L35=B129,L35=B130,L35=B131,L35=B132,L35=B133,L35=B134,L35=B135),V35*G10/L101,0)+IF(OR(L37=B124,L37=B125,L37=B126,L37=B127,L37=B129,L37=B130,L37=B131,L37=B132,L37=B133,L37=B134,L37=B135),V37*G10/L101,0)+IF(OR(L39=B124,L39=B125,L39=B126,L39=B127,L39=B129,L39=B130,L39=B131,L39=B132,L39=B133,L39=B134,L39=B135),V39*G10/L101,0)+IF(OR(L41=B124,L41=B125,L41=B126,L41=B127,L41=B129,L41=B130,L41=B131,L41=B132,L41=B133,L41=B134,L41=B135),V41*G10/L101,0)+IF(OR(L43=B124,L43=B125,L43=B126,L43=B127,L43=B129,L43=B130,L43=B131,L43=B132,L43=B133,L43=B134,L43=B135),V43*G10/L101,0)+IF(OR(L51=B124,L51=B125,L51=B126,L51=B127,L51=B129,L51=B130,L51=B131,L51=B132,L51=B133,L51=B134,L51=B135),T51*G10/L101/L99,0)+IF(OR(L53=B124,L51=B125,L53=B126,L53=B127,L53=B129,L53=B130,L53=B131,L53=B132,L53=B133,L53=B134,L53=B135),T53*G10/L101/L99,0)+IF(OR(L55=B124,L55=B125,L55=B126,L55=B127,L55=B129,L55=B130,L55=B131,L55=B132,L55=B133,L55=B134,L55=B135),T55*G10/L101/L99,0)+IF(OR(L57=B124,L57=B125,L57=B126,L57=B127,L57=B129,L57=B130,L57=B131,L57=B132,L57=B133,L57=B134,L57=B135),T57*G10/L101/L99,0)+IF(OR(K65=B124,K65=B125,K65=B126,K65=B127,K65=B129,K65=B130,K65=B131,K65=B132,K65=B133,K65=B134,K65=B135),U65*G10/L101/L99,0)+IF(OR(K67=B124,K67=B125,K67=B126,K67=B127,K67=B129,K67=B130,K67=B131,K67=B132,K67=B133,K67=B134,K67=B135),U67*G10/L101/L99,0)+IF(OR(K69=B124,K69=B125,K69=B126,K69=B127,K69=B129,K69=B130,K69=B131,K69=B132,K69=B133,K69=B134,K69=B135),U69*G10/L101/L99,0)+IF(OR(K71=B124,K71=B125,K71=B126,K71=B127,K71=B129,K71=B130,K71=B131,K71=B132,K71=B133,K71=B134,K71=B135),U71*G10/L101/L99,0)+IF(OR(K73=B124,K73=B125,K73=B126,K73=B127,K73=B129,K73=B130,K73=B131,K73=B132,K73=B133,K73=B134,K73=B135),U73*G10/L101/L99,0),0)","v":0},null,null,null,null,{"$f":"IFERROR(IF(OR(G25=B128),AB23*G10/L101,0)+IF(OR(L35=B128),V35*G10/L101,0)+IF(OR(L37=B128),V37*G10/L101,0)+IF(OR(L39=B128),V39*G10/L101,0)+IF(OR(L41=B128),V41*G10/L101,0)+IF(OR(L43=B128),V43*G10/L101,0)+IF(OR(L51=B128),T51*G10/L101/L99,0)+IF(OR(L53=B128),T53*G10/L101/L99,0)+IF(OR(L55=B128),T55*G10/L101/L99,0)+IF(OR(L57=B128),T57*G10/L101/L99,0)+IF(OR(K65=B128),U65*G10/L101/L99,0)+IF(OR(K67=B128),U67*G10/L101/L99,0)+IF(OR(K69=B128),U69*G10/L101/L99,0)+IF(OR(K71=B128),U71*G10/L101/L99,0)+IF(OR(K73=B128),U73*G10/L101/L99,0),0)","v":0},null,null,null,null,{"$f":"IFERROR(IF(OR(G25=B136),AB23*G10/L101,0)+IF(OR(L35=B136),V35*G10/L101,0)+IF(OR(L37=B136),V37*G10/L101,0)+IF(OR(L39=B136),V39*G10/L101,0)+IF(OR(L41=B136),V41*G10/L101,0)+IF(OR(L43=B136),V43*G10/L101,0)+IF(OR(L51=B136),T51*G10/L101/L99,0)+IF(OR(L53=B136),T53*G10/L101/L99,0)+IF(OR(L55=B136),T55*G10/L101/L99,0)+IF(OR(L57=B136),T57*G10/L101/L99)+IF(OR(K65=B136),U65*G10/L101/L99,0)+IF(OR(K67=B136),U67*G10/L101/L99,0)+IF(OR(K69=B136),U69*G10/L101/L99,0)+IF(OR(K71=B136),U71*G10/L101/L99,0)+IF(OR(K73=B136),U73*G10/L101/L99,0),0)","v":0},null,null,null,null,null,null,null,null,null,null,null,null,null,null,{"$f":"D109","v":0},{"$f":"I109","v":0},{"$f":"N109","v":0},{"$f":"S109","v":0},{"$f":"X109","v":0}]
[]
[]
[null,"PDS approval indicates acceptance of the supplier proposal however does not relieve the supplier of responsibility for packaging performance to the point of use."]
[null,"This document is the property of Cummins Inc. and cannot be revised without permission of the Cummins Global Packaging Council."]
[null,"PDS - REV 002 - DEC 2019"]
[null,{"$f":"PSDS!B1","v":"! Required entries are blank !"}]
[]
[]
[null,"Wood",null,null,null,null,null,null,null,null,"Wood"]
[null,"Wood ISPM15 compliant",null,null,null,null,null,null,null,null,"Wood"]
[null,"Corrugated Fiberboard",null,null,null,null,null,null,null,null,"Paper"]
[null,"Molded pulp",null,null,null,null,null,null,null,null,"Paper"]
[null,"Kraft paper",null,null,null,null,null,null,null,null,"Paper"]
[null,"VCI paper",null,null,null,null,null,null,null,null,"Paper"]
[null,"VCI PE film/bag",null,null,null,null,null,null,null,null,"Plastic"]
[null,"PE bag (Clear)",null,null,null,null,null,null,null,null,"Plastic"]
[null,"Bubblewrap (Clear)",null,null,null,null,null,null,null,null,"Plastic"]
[null,"Stretchwrap (Clear)",null,null,null,null,null,null,null,null,"Plastic"]
[null,"Steel",null,null,null,null,null,null,null,null,"Steel"]
[null,"PET  (1)",null,null,null,null,null,null,null,null,"Plastic",null,null,"polyethylene terephthalate "]
[null,"HDPE (2)",null,null,null,null,null,null,null,null,"Plastic",null,null,"high-density polyethylene "]
[null,"PVC  (3)",null,null,null,null,null,null,null,null,"Plastic",null,null,"polyvinyl chloride"]
[null,"LDPE (4)",null,null,null,null,null,null,null,null,"Plastic",null,null,"low-density polyethylene "]
[null,"PP   (5)",null,null,null,null,null,null,null,null,"Plastic",null,null,"polypropylene"]
[null,"PS   (6)",null,null,null,null,null,null,null,null,"Plastic",null,null,"polystyrene"]
[null,"Other Plastics (7)",null,null,null,null,null,null,null,null,"Plastic"]
[null,"Other-not-listed",null,null,null,null,null,null,null,null,"Other"]

{"sheet":"Check Requirements - END HERE","index":4,"n_rows":81,"n_cols":7,"rows_kept":81,"cut":false,"hidden":false,"merged":[[36,1,36,4],[42,1,42,4],[0,0,0,4],[3,8,3,13],[4,1,4,4],[12,1,12,4],[16,1,16,4],[18,1,18,4],[27,1,27,4],[14,1,14,4],[51,1,51,4],[54,1,54,4],[61,1,61,4],[74,1,74,4],[79,1,79,4]]}
["Note: For reference only. This is a list of General Packaging Requirements from the Cummins Global Packaging Standard for Production Parts intended to improve understanding during packaging development and review. Other requirements may apply and/or be discovered during the review process. Completing the checklist is recommended for suppliers but not required."]
["Sr. No","Ref. No","Description","Supplier Check","Cummins Check"]
["A","N/A","Quoted packaging cost matches Recurring Packaging Material Cost per Piece in PCDS"]
["B","N/A","PSDS and PCDS completed"]
[null,"5.1. Part Protection"]
[1,"5.1.1.","Plan the packaging such that parts may be removed without unnecessary handling."]
[2,"5.1.2.","Nested parts may be sequentially packed but shall be easily removed from the packaging.",null,null,null,"Complies"]
[3,"5.1.3.","Plan the packaging such that a safe and stable unit load is maintained in the “as packed” condition when the closure is removed.",null,null,null,"Exception"]
[4,"5.1.4.","Protect open holes of functional parts which may be adversely affected by contaminants.",null,null,null,"Request Clarification"]
[5,"5.1.5.","When plugs and caps are used they shall be easy to remove, but shall remain intact during transportation and handling.",null,null,null,"N/A"]
[6,"5.1.6.","Protect functional and pre-calibrated parts to the extent necessary to insure print specification compliance."]
[7,"5.1.7.","Protect special surfaces such as:\na. Machined Surfaces\nb. Finish painted or to be painted\nc. Finish plated or to be plated"]
[null,"5.2. Failsafing"]
[8,"5.2.","Packaging may be designed to failsafe our manufacturing processes and/or to facilitate assembly through the incorporation of a mistake-proofing function to the packaging and/or through part presentation."]
[null,"5.3. Part Cleanliness"]
[9,"5.3.","Supplier packaging and preservation methods shall protect for print specified part cleanliness\nrequirements. Parts that are not clean due to packaging debris will be considered out of\nspecification and may be subject to MNC or SCAR through the Part Quality System. The defect is considered a part specific defect even through the corrective action may require the Packaging Departments to lead the improvement. An example of this could be a part that has corrugated fiber or plastic shavings from dividers that have contaminated the part."]
[null,"5.4. Preservation and Shelf Life"]
[10,"5.4.","Preservation shall be sufficient to protect the product from any corrosion or deterioration for a period of 6 months for production parts and 18-months for aftermarket / Service parts, under normal warehouse storage and transportation conditions. The 6 or 18 month period begins when Cummins assumes title to the goods."]
[null,"5.5. Sustainability and Environmental Impact"]
[11,"5.5.1.","Packaging shall be created with consideration of all governmental regulations and environmental impact from packaging material selection through the end of life cycle."]
[12,"5.5.1.1.","Acceptable packaging materials include, but are not limited to:\na. Clean corrugated/fiberboard\nb. Coated (non-wax) and fully recyclable fiberboard\nc. Molded pulp\nd. Clean Kraft Paper\ne. Paper (VCI treated acceptable)\nf. Polyethylene materials (HDPE, LDPE, LLDPE) other than foams\ng. Polyethylene Terephthalate (PET, PETE, PETG, RPET)\nh. Polypropylene materials (PP)\ni. Steel\nj. Wooden pallets/boxes/crates:\n * shall comply with International Standards for Phytosanitary Measures (ISPM-15).\n * Manufactured wood packaging materials shall comply with Cummins exposure limits of 0.016 ppm [0.02 mg/m3 of formaldehyde per cubic meter of air (mg/m3)] as an 8 hour total weighted average and 0.1 ppm (0.15 mg/m3) as a ceiling concentration determined in any 15-minute sampling."]
[13,"5.5.1.2.","Biodegradable and commercially compostable materials are preferred whenever possible."]
[14,"5.5.1.3.","In-process (pre-consumer) recycled materials and post-consumer recycled materials (PCR) are preferred whenever possible."]
[15,"5.5.1.4.","Allowable packaging materials with Cummins receiving site approval at the part\nnumber level:\na. Single Use plastics (e.g. partitions, layer trays and pads)\nb. Foams (Ethylene, Propylene, Styrene, Urethane, etc.)\nc. Polyvinyl Chloride (PVC)"]
[16,"5.5.1.5.","Prohibited packaging materials include:\na. Hazardous materials except those allowed and regulated by World Health\nOrganization standards.\nb. Soiled Corrugated (oil soaked).\nc. Wax or poly-coated corrugated (these are non-recyclable).\nd. Microfoam laminated corrugated.\ne. Materials (solid wood) requiring ISPM 15 compliance treated with methyl bromide (MB) are strictly prohibited in all European Union and United Kingdom nations. All part packages consisting of solid wood packaging materials shall use other than MB treatments to comply with ISPM 15 for all Cummins directed shipments (including Joint Venture locations)."]
[null,"5.5.1.6.","Where practicable, all polymer resin material shall have the recycling resin code visible and legible. Per ASTM D7611—Standard Practice for Coding Plastic Manufactured Articles for Resin Identification."]
[null,"5.5.1.7.","Design packaging to minimize the environmental impact by:\na. Reducing the amount of material needed for the packaging and avoiding the use of non\u0002renewable resources.\nb. Reusing the packaging material in a manner that is safe and cost-effective with special attention to transportation distances necessary to complete the cycle.\nc. Maximizing the use of renewable or recycled packaging materials."]
[null,"5.6. Lean Principles in Containerization"]
[17,"5.6.a.","Containerization and packaging methods shall optimize pack density with consideration for part quality, ergonomics and cost."]
[18,"5.6.b.","Part orientation for ergonomic presentation shall optimize the operators grasp, lift, manipulation and part transfer to the work."]
[19,"5.6.c.","Part orientation in the container shall utilize the relative location to the container label as a reference for consistent presentation at line-side."]
[20,"5.6.d.","Where dunnage is required, its orientation within the container shall be consistently applied such that the part-to-shipping label relationship is maintained."]
[21,"5.6.e.","Manually handled containers are the preferred method when an ergonomic advantage can be realized by a decreased reach or lift distance."]
[22,"5.6.f.","The Gross Weight Limit (GWL) for manually handled containers to any given Cummins facility shall not exceed 15 kg or 33 lbs."]
[23,"5.6.g.","Manually handled containers are indicated when the part dimensions, features, and weight will allow the container to safely house in an ergonomically favorable orientation a maximum gross weight of 15 kg, with a target quantity of one third (1/3) to one hours production."]
[24,"5.6.h.","Where site usage dictates, manually handled containers shall be sized such that the Standard Pack Quantity (SPQ) does not exceed one day’s production – with the exception of high-density commodity items such as fasteners."]
[null,"5.7. Packaging Materials"]
[25,"5.7.1.1.","The supplier shall utilize materials of sufficient strength and integrity to provide for the safe transport of quality parts to the point of use."]
[26,"5.7.1.2.","The supplier shall apply proper packaging principles in container and dunnage design with considerations for both static and dynamic conditions."]
[27,"5.7.1.3.","The supplier shall apply proper packaging principles in palletization and unit load securement.\na. Polyester strapping is preferred.\nb. Metal strapping shall not be used without express written permission at the part number level from the Cummins Receiving Site Packaging Representative."]
[28,"5.7.1.4.","Containers are to be sized such that solid foundational support is derived from the pallet (no container/carton/part overhang allowed)."]
[29,"5.7.1.5.","Use of corner posts and angle board are acceptable means of enhancing unit-load performance as required."]
[null,"5.7.2. Pallet Design and Construction"]
[null,"5.7.2.1.","It is REQUIRED that all international shipments and any shipments to Cummins Aftermarket Parts Distribution Centers comply with ISPM 15 and the mark must be:\na. Legible\nb. Durable and not transferable\nc. Placed in a location that is visible when the wood packaging is in use, preferably on at least two opposite sides of the wood packaging unit"]
[32,"5.7.2.1.a","Pallets 40-inch L x 40-inch W (1016 mm x 1016 mm) and larger shall have 4-way entry."]
[33,"5.7.2.1.b","Open space between top deck boards shall not exceed 3 inches (76 mm)."]
[34,"5.7.2.1.c","Top and bottom edge deck boards shall be flush with stringer ends within normal tolerances. "]
[35,"5.7.2.1.d","Stringer pallets shall have a minimum lift access of 3.5 inches (89 mm). Notched stringers\non 4-way entry pallets shall have an opening height of 2.5 inches (64 mm). Notched opening shall be 9 inches (229 mm) wide, with radial cut top corners and placed on 16 inch to 24 inch (406 mm to 610 mm) centers. "]
[36,"5.7.2.1.e","Block style pallets shall have a minimum lift access of 4-inches (100 mm)."]
[37,"5.7.2.1.f","Pallets shall have sufficient beam strength for use with warehouse storage racks."]
[38,"5.7.2.1.g","All fastener heads shall be countersunk or flush and remain so for the entire use and storage\nof the product/package."]
[null,"5.8. Package Closure"]
[42,"5.8.1.","Acceptable methods of closure are:\na. Adhesives\nb. Sealing Tape\nc. Polyester or Nylon Strapping (Banding)"]
[43,"5.8.2.","The following methods of closure are prohibited, without written approval from the receiving site:\na. Metal Stitches and Staples\nb. Steel Strapping (Banding)"]
[null,"5.9. Modularity"]
[44,"5.9.a.","The unit load should be modular to the mode of transport from the supplier location to point of use."]
[45,"5.9.b.","Where multiple modes of transport are utilized, the unit load modularity should be optimized to the mode of transport resulting in the lowest total logistics cost."]
[46,"5.9.c","Where multiple modes of transport are utilized and total logistics cost does not favor one mode over another, the unit load shall utilize the standards applicable to the global region of the receiving customer facility."]
[47,"5.9.d.","Where manually handled containers are determined to be the appropriate packaging method, the containers shall be modular to the unit load."]
[null,"5.9.e.","The supplier shall define carton dimensions to be modular to Unit Load cube appropriate to the method of transport, See Figure 8: Modularity & Cube Utilization of Loads on page 25 for examples of carton modularity and cube utilization."]
[48,"5.9.f.","Should maximize the space on the pallet and in the truck and take into consideration order quantity requirements, load weight, and package cost."]
[null,"5.10. Unit Load Stability and Stackability"]
[49,"5.10.1.a.","The unit load shall safely stack up to 100” (2540 mm) in a dynamic environment (in transit) on a stable level plane of like freight (foot print & weight)."]
[50,"5.10.1.b.","The unit load shall safely stack to the greater of three high or 10’6” (3200 mm), in a static environment (in warehouse)."]
[51,"5.10.1.c.","To ensure maximum stacking strength, cartons unitized on a pallet shall be column stacked."]
[52,"5.10.1.d."," The maximum gross weight of loads shipped to Cummins locations shall not exceed 4,000 pounds per unit load unless authorized by the Cummins receiving site."]
[53,"5.10.1.e.","The unit load height to width ratio (h:w) shall not exceed 2:1 unless approved through the Cummins PDS approval process."]
[54,"5.10.1.f.","Unit loads shall be structured to maximize stability such that the center of gravity is located centrally to the container footprint and at the lowest elevation possible. If the part package is not capable of a balanced center of gravity, the center of gravity shall be clearly marked on the outside of the package to inform the logistics/warehouse personnel of the center of gravity location. This is a critical safety requirement and shall be noted on all sides of the load that could potentially be lifted by fork truck, crane, or other means."]
[55,"5.10.1.g.","Cummins shall make every effort to order in multiples of the SPQ as defined in the Supplier Agreement.","N/A"]
[56,"5.10.1.h.","Cummins should make every effort to order in even layer quantities (even layer multiples of the SPQ).","N/A"]
[57,"5.10.1.i.","Cummins should make every effort to order Standard Unit Load Quantities (SULQ) when schedules allow.","N/A"]
[58,"5.10.1.j.","Whenever possible, the unit load should contain parts of the same part number however, mixed loads are accepted as allowed by the Cummins Supply Chain Agreement specific to those parts and that Cummins receiving site."]
[59,"5.10.1.k.","When mixed loads are appropriate due to product mix and release quantity, the supplier shall apply proper packaging principles in palletization."]
[60,"5.10.1.l.","All unit loads shall be equalized to full layer orientation whenever possible. Stacking cartons in a pyramid configuration on a unit load is not permitted. Exceptions will require written deviation from the Cummins receiving site."]
[null,"5.11. Extreme Distribution Conditions "]
[61,"5.11.a.","Less-Than-Container-Load (LCL) vs. Full Container Load (FCL) ocean freight transport methods may require further refinements to packaging design."]
[62,"5.11.b.","Weather conditions and freight handling methods in different parts of the world require additional protection from the elements."]
[63,"5.11.c.","The supplier shall be responsible for adequately protecting the product and packaging from moisture through the inclusion of Volatile Corrosion Inhibitor (VCI), Desiccants, and an appropriate closure method."]
[64,"5.11.d.","Closure methods should include covering and/or sealing the unit load with a poly-bag or stretch wrap film. This is particularly critical when LCL transportation methods are used."]
[null,"Plant-specific Requirements"]
[null,null,"Confirm any plant, line, or part specific requirements"]

{"sheet":"Control","index":5,"n_rows":11,"n_cols":4,"rows_kept":11,"cut":false,"hidden":true,"merged":[]}
["Minor Revision Date","Master Template Name","Master Template & Minor Revision Name","Minor Revision Log"]
["2020-08-14","CUMMINS_GLOBAL_PACKAGING_DATA_SHEET_REV_002",{"$f":"$B2&\"_\"&UPPER(TEXT($A2,\"MMMYYYY\"))","v":"CUMMINS_GLOBAL_PACKAGING_DATA_SHEET_REV_002_AUG2020"},"> Receiving Location list update - \"CNGE_Cummins Clovis Natural Gas Engine - Clovis, NM\" added\n\n> Receiving Location list update - \"RECON DTA - Megasite, Phaltan, India\" added"]
["2020-08-31","CUMMINS_GLOBAL_PACKAGING_DATA_SHEET_REV_002","CUMMINS_GLOBAL_PACKAGING_DATA_SHEET_REV_002_31AUG2020","> Updated data validation and input message on Sheet PSDS : Cell W13 to include SIM Ids that begin with “5” (and “6” to address that future evolution now)."]
["2020-09-29","CUMMINS_GLOBAL_PACKAGING_DATA_SHEET_REV_002","CUMMINS_GLOBAL_PACKAGING_DATA_SHEET_REV_002_29SEP2020","> Updated list of values on BANDNG measurement on PSDS to exclude blank values so Suppliers don't input values other than listed."]
["2020-10-27","CUMMINS_GLOBAL_PACKAGING_DATA_SHEET_REV_002","CUMMINS_GLOBAL_PACKAGING_DATA_SHEET_REV_002_27OCT2020","1.\tMinor Changes: Removed gridview on PSDS and PCDS Sheet and colored all the list of values white font so they are not visible to users.\n2.\tPSDS Sheet: Included Data validation to use manual values rather than from cell range (to make it case sensitive as is on list of values).\n3.\tUpdated data validation comment on Pallet deckboard spacing list of values cell to reflect \"section 5.7.2.1. Pallet Design Requirements\"."]
["2021-03-16","CUMMINS_GLOBAL_PACKAGING_DATA_SHEET_REV_002","CUMMINS_GLOBAL_PACKAGING_DATA_SHEET_REV_002_16MAR2021","Add\nCES - ESJ_Cummins Emission Solutions - El Paso, TX, Juarez, Mexico\nPDC - DAV_United Kingdom Logistics Center - Daventry,UK\n\nRemoved\nLEGACY_CTT - PP_Cummins Turbo Technology - Palmetto - Ladson, USA\nLEGACY_PDC - MDC_Parts Distribution Center  - Memphis, TN, USA\nPDC - CPG_Cummins Power Generation - Parts Distribution Center - Memphis, TN,USA\nFBU - FMX_Cummins Filtration  - San Luis Potosi, Mexico\nCPG - KENT_Cummins Power Generation - Kent, UK"]
["2021-04-28","CUMMINS_GLOBAL_PACKAGING_DATA_SHEET_REV_002",{"$f":"$B7&\"_\"&UPPER(TEXT($A7,\"MMMYYYY\"))","v":"CUMMINS_GLOBAL_PACKAGING_DATA_SHEET_REV_002_APR2021"},"NPBU receiving locations updated from EPBU designations to reflect true business unit.\n\nNPBU Herten, Germany receiving location added.\n\nPSDS instructions updated to account for 2019 Revision 002 structural changes: part preservation section added.\n\nPSDS and PCDS instruction worksheets received format update to improve readability for suppliers."]
["2021-05-11","CUMMINS_GLOBAL_PACKAGING_DATA_SHEET_REV_002",{"$f":"$B8&\"_\"&UPPER(TEXT($A8,\"MMMYYYY\"))","v":"CUMMINS_GLOBAL_PACKAGING_DATA_SHEET_REV_002_MAY2021"},"PSDS Instructions -  Cummins Location instruction reverted to old definition. ISPM-15 instruction added to form.\n\nPSDS & PCDS Instructions - Rev listing (bottom, in red) corrected to reflect current master revision (PDS - REV 002 - DEC 2019)\n\nPSDS - Corrected spelling error that has been present since December 2019 (\"RECEVING LONCATION' became \"RECEIVING LOCATION\")"]
["2021-05-18","CUMMINS_GLOBAL_PACKAGING_DATA_SHEET_REV_002",{"$f":"$B9&\"_\"&UPPER(TEXT($A9,\"MMMYYYY\"))","v":"CUMMINS_GLOBAL_PACKAGING_DATA_SHEET_REV_002_MAY2021"},"NPBU - New Power, Mississauga, Ontario, CAN added to receiving locations"]
["2021-12-13","CUMMINS_GLOBAL_PACKAGING_DATA_SHEET_REV_002",{"$f":"$B10&\"_\"&UPPER(TEXT($A10,\"MMMYYYY\"))","v":"CUMMINS_GLOBAL_PACKAGING_DATA_SHEET_REV_002_DEC2021"},"CES - ESN Cummins Emission Solutions - Beringe, Netherlands added to receiving locations\n\nCheck Requirements aligned to GPS-PP"]
["2022-03-14","CUMMINS_GLOBAL_PACKAGING_DATA_SHEET_REV_002",{"$f":"$B11&\"_\"&UPPER(TEXT($A11,\"MMMYYYY\"))","v":"CUMMINS_GLOBAL_PACKAGING_DATA_SHEET_REV_002_MAR2022"},"Added receiving location - RECON SEZ - Pithampur, India"]